Workbook

Sheet Cover Page
D1: Add company logo
N2: Version 24.2a (for incinerators) - 27/11/24
N4: Note that there is another version of this template available for co-incinerators
B8: Add photo
N13: Notes:
N14: This template may require adjustments by individual operators to meet specific reporting requirements as defined in the site Permit(s)
B28: Annual Performance Report 2024
B30: Permit EPR/XP3833DK
B32: Ferrybridge 2
B36: enfinium Ferrybridge 2 Ltd
B38: Year: | C38: 2024
B40: Address: | C40: Stranglands Lane, Knottingley, West Yorkshire, WF11 8SQ
B42: Tel: | C42: 01977 636936
B44: Email: | C44: john.warren@enfinium.co.uk
B46: Prepared by: | C46: John Warren | F46: Position: | G46: Environmental Manager
B48: Approved by: | C48: Adam Nicholson | F48: Position: | G48: Plant Manager
B50: Version: | C50: 2
B52: Issue Date: | C52: 2025-01-31

Sheet Facility Info
A1: =+'Cover Page'!$B$28 -> Annual Performance Report 2024 | E1: =+'Cover Page'!$B$32 -> Ferrybridge 2
A3: Plant Description and Design | K3: Notes:
A5: Ferrybridge 2 is designed for the disposal of waste with energy recovery in an incineration plant and is permitted under Section 5.1 A(1)(b) the incineration of non-hazardous waste in an incineration plant with a capacity exceeding 3 tonnes per hour. The installation is located on land to the north of Ferrybridge 1 site, close to the A1(M). It lies approximately 1km northwest of the village of Ferrybridge, 2km northwest of Knottingley, 1.8km southeast of Ferry Fryston, and 3km northeast of Pontefract, at grid reference SE 472 254. The facility has a throughput limit of 725,000 tonnes per year of waste which can include refuse derived fuel, waste wood and commercial and industrial waste. The facility consists of two combustion lines and generates approximately 80 MWe of electricity, of which approximately 73 MWe is exported. Moving grate technology is used for burning the waste material. The furnace design ensures that a temperature of at least 850 degrees celcius for a period of at least two seconds is achieved in the combustion chamber. Auxillary burners firing a low sulphur gas oil are automatically triggered by online process monitoring equipment are used to ensure the temperature does not fall below 850 degrees celcius. Hot gases from the furnace pass in a boiler. Steam raised in the boiler is passed to a turbine to generate electricity for export to the National Grid. | K5: Include summary of plant design, design capacity, no. of combustion lines, electrical and heat capacity and any other general information that describes the facility, its location and purpose
A18: Summary of Operational Processes and Procedures
A20: Key processes include waste reception, waste storage, water use, drainage, flue gas and air supply systems, boilers, treatment of exhaust gases, treatment and storage of residues and water recycling, stacks, devices and systems for controlling incineration operations, recording and monitoring conditions. The site has an Environmental Management System accredited to ISO 14001. Health and Safety management system covering all aspects of health and safety comprising policy, procedures, risk assessments, Key Performance Indicators (KPIs) and objectives reviewed periodically. The site has accreditation to ISO 45001:2018 for Health & Safety Management and ISO 9001 for Quality Management. Maintenance across the facilities is broken down in to reactive (breakdown) maintenance, and planned preventive maintenance. Preventive maintenance is conducted via the philosophy of Risk Based Inspections to ensure the safety of personnel and availability of the plant is cost effectively maintained. | K20: Include summary of key processes and procedures such as (but not limited to); waste reception, control rooms, grate, bed and boiler, energy & heat generation, cooling systems, residue management, emission controls, health and safety systems, maintenance
C52: 2025-01-31

Sheet Contents
A1: =+'Cover Page'!$B$28 -> Annual Performance Report 2024 | E1: =+'Cover Page'!$B$32 -> Ferrybridge 2
A3: Contents | K3: Notes:
A4: Section | B4: Subject | H4: Page | K4: Section references and Page nos. to be inserted
B5: Facility Information | H5: 2 | K5: Sections and Subjects may require adjustment by individual operators to meet specific reporting requirements as defined in the sites Permit(s)
B6: Operational Data | H6: 4
B7: Operational Summary | H7: 6
B8: Performance Form 1 | H8: 10
B9: Energy Form 1 | H9: 12
B10: Permit Compliance | H10: 13
B11: Improvements | H11: 15
B12: Public Liaison | H12: 16
B13: Carbon dioxide and nitrous oxide emissions | H13: 17
B14: Residue Quality | H14: 18
B15: Emissions to Water | H15: 19
B16: Emissions to Air (periodically monitored) | H16: 20
B17: Emissions to Air (continuously monitored) | H17: 22
B18: Oxides of Nitrogen emissions | H18: 23
B19: Sulphur Dioxide emissions | H19: 24
B20: Hydrogen Chloride emissions | H20: 25
B21: Total Organic Carbon emissions | H21: 26
B22: Particulate Matter emissions | H22: 27
B23: Ammonia emissions | H23: 28
B24: Carbon Monoxide emissions | H24: 29
A25: Version Control
A26: Section | B26: Information | H26: Date
A33: Distribution
A34: Copy | B34: Name, Role | H34: No.
A43: This report is required under the Industrial Emissions Directive’s Article 55(2) requirements on reporting and public information on waste incineration plants and co-incineration plants, which require the operator to produce an annual report on the functioning and monitoring of the plant and make it available to the public.
C52: 2025-01-31

Sheet Operational Data
A1: =+'Cover Page'!$B$28 -> Annual Performance Report 2024 | E1: =+'Cover Page'!$B$32 -> Ferrybridge 2
A3: Operational Data
A4: Plant Size | B4: 725000 | D4: tonnes pa | E4: 80 | F4: MWth | G4: 73 | H4: MWe | J4: Notes:
A5: No. of combustion lines | B5: 2 | D5: No. of Turbines: | F5: 1 | J5: * - RDF to include SRF
J6: ** - Combusted tonnage = tonnes delivered in period + (tonnes in bunker at start of period – tonnes in bunker at end of period), or equivalent calculation depending on plant type
A7: Waste types received | B7: Unit | C7: Q1 | D7: Q2 | E7: Q3 | F7: Q4 | G7: Year Total | H7: %
A8: Refuse Derived Fuel * - H'hold/LA | C8: 170141.18 | D8: 175064.6 | E8: 174990.92 | F8: 148042.64 | G8: =SUM(C8:F8) -> 668239.34 | H8: =IF(G8>0,G8/$G$9,"-") -> 1
A9: Total waste received | C9: =SUM(C8:C8) -> 170141.18 | D9: =SUM(D8:D8) -> 175064.6 | E9: =SUM(E8:E8) -> 174990.92 | F9: =SUM(F8:F8) -> 148042.64 | G9: =SUM(C9:F9) -> 668239.34
A10: Total waste combusted ** | C10: 170791.66 | D10: 174341.43 | E10: 174654.67 | F10: 149794.58 | G10: =SUM(C10:F10) -> 669582.34
J11: Password for protected cells A password has been set to prevent accidental editing of cells with formulae. If you still need to make an edit for some reason then the password = 1234
A12: Energy Usage / Export | B12: Unit | C12: Q1 | D12: Q2 | E12: Q3 | F12: Q4 | G12: Year Total | H12: KWh/te
A13: Power Generated | B13: MWh | C13: 170072.6 | D13: 176877.89 | E13: 177798.54 | F13: 124980.05 | G13: =SUM(C13:F13) -> 649729.08 | H13: =IF(G13>0,G13*1000/$G$10,"-") -> 970.3497855
A14: Power Exported | C14: 154707 | D14: 160606 | E14: 161802 | F14: 117826 | G14: =SUM(C14:F14) -> 594941 | H14: =IF(G14>0,G14*1000/$G$10,"-") -> 888.5255247
A15: Power Used on site | C15: =C13-C14 -> 15365.6 | D15: =D13-D14 -> 16271.89 | E15: 15996.54 | F15: 7154.05 | G15: =SUM(C15:F15) -> 54788.08 | H15: =IF(G15>0,G15*1000/$G$10,"-") -> 81.82426078
A16: Power Imported | C16: 102.98 | D16: 0 | E16: 28.71 | F16: 2193.45 | G16: 2325.14 | H16: =IF(G16>0,G16*1000/$G$10,"-") -> 3.472522886
A17: Parasitic Load | B17: % | C17: =IF(C13>0,1-C14/(C13+C16),"-") -> 0.09089776571 | D17: =IF(D13>0,1-D14/(D13+D16),"-") -> 0.09199504811 | E17: =IF(E13>0,1-E14/(E13+E16),"-") -> 0.09011695339 | F17: =IF(F13>0,1-F14/(F13+F16),"-") -> 0.07350194813 | G17: =IF(G13>0,1-G14/(G13+G16),"-") -> 0.08758967928
A18: R1 value (if applicable) | B18: R1 | G18: 0.86
A20: Waste Disposal & Recovery | B20: Unit | C20: Q1 | D20: Q2 | E20: Q3 | F20: Q4 | G20: Year Total | H20: % inputs
A21: APC Residues - produced | B21: tonnes | C21: 7641.92 | D21: 7675.36 | E21: 7020.9 | F21: 6066.86 | G21: =SUM(C21:F21) -> 28405.04 | H21: =IF(G21>0,G21/$G$10,"-") -> 0.04242202684
A22: APCr filter bags | C22: 6.02 | D22: 10.92 | E22: 0 | F22: 0 | G22: =SUM(C22:F22) -> 16.94 | H22: =IF(G22>0,G22/$G$10,"-") -> 2.529935303e-05
A23: Oil contaminated solid waste | C23: 0 | D23: 4.4 | E23: 5.5 | F23: 0 | G23: =SUM(C23:F23) -> 9.9 | H23: 1.478533618e-05
A24: Waste oil | C24: 0.979 | D24: 1.5 | E24: 0 | F24: 2.314 | G24: 4.793 | H24: 7.158193569e-06
A25: Fluorescent tubes | C25: 0 | D25: 0.08 | E25: 0 | F25: 0 | G25: 0.08 | H25: 1.194774641e-07
G26: 0 | H26: -
A27: IBA - produced | C27: 30528.07 | D27: 33719.24 | E27: 35321.79 | F27: 27659.01 | G27: 127228.11 | H27: 0.1900111493
A28: Ferrous metals from bottom ash | C28: 2325.46 | D28: 2555.6 | E28: 2485.28 | F28: 2113.76 | G28: 9480.1 | H28: 0.01415822884
A29: Metals | C29: 7.66 | D29: 1.5 | E29: 0 | F29: 33.22 | G29: 42.38 | H29: 6.329318662e-05
A30: Mixed packaging | C30: 0.48 | D30: 0.4 | E30: 0.38 | F30: 0.6 | G30: 1.86 | H30: 2.777851041e-06
A31: Mixed municipal waste | C31: 6.06 | D31: 7.12 | E31: 7.1 | F31: 20.26 | G31: 40.54 | H31: 6.054520494e-05
A32: Wood waste | C32: 2.18 | D32: 1.1 | E32: 1.98 | F32: 2.84 | G32: 8.1 | H32: 1.209709324e-05
A33: Rubble | C33: 13.42 | D33: 0 | E33: 29.22 | F33: 67.8 | G33: 110.44 | H33: 0.0001649386392
A34: Sewage waste | C34: 0 | D34: 5.28 | E34: 6.14 | F34: 67.5 | G34: 78.92 | H34: 0.0001178645184
A35: Waste Electrical and Electronic Equipment | C35: 0 | D35: 4 | E35: 0 | F35: 0 | G35: 4 | H35: 5.973873206e-06
A36: Activated carbon waste from wastewater treatment | C36: 0 | D36: 0.94 | E36: 0 | F36: 0 | G36: 0.94 | H36: 1.403860203e-06
A38: Raw Material Usage | B38: Unit | C38: Q1 | D38: Q2 | E38: Q3 | F38: Q4 | G38: Year Total | H38: kg or Ltr /te
A39: Mains Water | B39: ltrs | C39: 13050.9 | D39: 8912 | E39: 16193.5 | F39: 15525 | G39: =SUM(C39:F39) -> 53681.4 | H39: =IF(G39>0,G39/$G$10,"-") -> 0.08017146928
A40: Other Water | B40: ltrs | C40: 22422.9 | D40: 26543.26 | E40: 19850.15 | F40: 18419.46 | G40: 87235.77 | H40: =IF(G40>0,G40/$G$10,"-") -> 0.1302838572
A41: Ammonia | B41: kgs | C41: 46805.55 | D41: 44015.26 | E41: 44284.96 | F41: 31137.49 | G41: 166243.26 | H41: 0.2482790391
A42: Activated Carbon | B42: kgs | C42: 55508 | D42: 61153.33 | E42: 68097.5 | F42: 46113.54 | G42: 230872.37 | H42: 0.3448005663
A43: Lime / hydrated lime | B43: kgs | C43: 3530039 | D43: 3747909 | E43: 3322260 | F43: 2706470 | G43: 13306678 | H43: 19.87310179
A44: Fuel oil | B44: ltrs | C44: 156496.07 | D44: 56313.42 | E44: 102191.19 | F44: 547762.28 | G44: 862762.96 | H44: 1.288509132
A46: Summary | B46: Line/Unit | C46: Q1 | D46: Q2 | E46: Q3 | F46: Q4 | G46: Year Total | I46: Hrs in year
A47: Availability of waste combustion by line, hrs **** | B47: 1 | C47: 2086 | D47: 2184 | E47: 2208 | F47: 1836 | G47: =SUM(C47:F47) -> 8314 | H47: =+G47/$I$47 -> 0.9464936248 | I47: 8784 | J47: Change this figure to 8784 in a leap year
B48: 2 | C48: 2065.8 | D48: 2137.7 | E48: 2206.7 | F48: 1816.9 | G48: 8227.1 | H48: =+G48/$I$47 -> 0.9366006375
A49: Overall Availability, mean avg. of all lines, hrs | C49: =AVERAGE(C47:C48) -> 2075.9 | D49: =AVERAGE(D47:D48) -> 2160.85 | E49: 2207.35 | F49: 1826.45 | G49: =AVERAGE(G47:G48) -> 8270.55 | H49: 0.9415471311
A50: Hours of turbine operations, hrs | B50: 1 | C50: 2159.6 | D50: 2184 | E50: 2201.5 | F50: 1675 | G50: 8220.1 | H50: 0.9358037341
A51: Net Calorific Value of waste | B51: MJ/kg | C51: 12 | D51: 12 | E51: 12 | F51: 12 | G51: =AVERAGE(C51:F51) -> 12
A52: Abnormal Events | B52: qty. | C52: 0 | D52: 0 | E52: 0 | F52: 1 | G52: 1 | H52: =IF(G52>0,"yes","no") -> yes
A53: Permit Breaches | B53: qty. | C53: 0 | D53: 0 | E53: 0 | F53: 0 | G53: 0 | H53: =IF(G53>0,"yes","no") -> no

Sheet Operational Summary
A1: =+'Cover Page'!$B$28 -> Annual Performance Report 2024 | E1: =+'Cover Page'!$B$32 -> Ferrybridge 2
A3: Summary of Plant Operations and Maintenance during the reporting year | K3: Notes:
A5: Key Operational Activities January – Turbine trip & loss of both boilers (turbine drains pump issues) January – Turbine trip (turbine drains pump issues) February - Line 2 Boiler planned shutdown (Pit stop) March - Line 1 Boiler planned shutdown (Pit stop) May – Line 2 Boiler trip (ID fan trip due furnace over pressurisation) July – Line 1 Boiler trip (ID fan trip due furnace over pressurisation) July – Turbine trip & loss of Line 1 boiler (turbine drains pump issues) September - Ash Cranes Master PLC comms error October – Major outage October – Boiler Trip (loss of air compressors) November – Blanking plate removal December - Turbine trip (cable fault on vibration sensor) Key Maintenance Activities JANUARY • Waste crane 2 umbilical change • Waste grab full overhaul • Turbine drains pumps replaced • Line 2 division wall tube repair • ACC structural beam repair due to deflection from adverse weather conditions FEBRUARY • Waste crane 2 rope replacement • Grab petal repairs and replacements • Load bank earth fault rectified • UK fire, fire system servicing • Line 2 pitstop • Element 22 replaced • Primary air fan motor replacement • Burner service and overhaul MARCH • Line 1 fabric filter bags replaced • Waste and ash crane LOLER inspections • Line 1 pitstop • Element 12 replaced • ID fan motor replaced • Combustion fan VFD maintenance APRIL • Load bank feeder 3 siprotec unit replaced • Waste grab full overhaul • ACC thermography check with drone • Statutory lift inspections MAY • Drier servicing • Feed pump number 4 servicing • Waste grab petal repairs • Vibrating bed mounts repaired • Waste crane DVDT filter replaced • Vibrating conveyor damper bushes replaced JUNE • Vibrating conveyor damper bushes replaced • Waste crane invertor replaced • Rapper cylinder maintenance strategy commenced • Waste crane life expectancy report carried out • Emergency lighting inspection • Line 2 missing refractory tiles on the 1st pass replaced with spray. JULY • Defective end stop on waste crane 2 gantry replaced • UPS2 Battery replacement • UPS1 Battery replacement • Demin tank shell repairs AUGUST • PSSR intermediate inspections • Waste cane 2 umbilical replaced • Fire system service • Waste crane grab overhaul SEPTEMBER None OCTOBER Major outage Line 1 – Mechanical • Full clean and inspection of internal boiler/furnace gas path. • Bunker side furnace nozzle “Y” piece replacements and material upgrade to SS316 • 3rd pass LHS wall thermal spray application (26m-32m) • NDT checks on boiler as part of the maintenance strategy – Vertex model • Superheater sections 3.1 and 2.2 leading 2 rows replaced • Inspection of mechanical grate on lines 1 and 2 inclusive of minor repairs. • Eco screw replacement • Reactor screw replacement • Pass 1 - Lower 2 rows of airflow refractory tiles replaced. NDT carried out pre replacement • Pass 1 - Upper 2 rows of air flow refractory tiles replaced. NDT carried out pre replacement • Pass 1 - General refractory maintenance carried out. Defective areas replaced. • Boiler access door shelves refractory reinstated • Inspections of site wide safety valves and test certs provided. • Thorough statutory inspections carried out as per PSSR WSE. • Full inspection and overhaul of ancillary plant equipment inclusive of Ash, FGT, APCR systems. • Site wide valve inspections and repairs. • Eco 6 support brace replaced • Grate elements 22 and 23 replaced • Inconel repairs carried out to furnace side walls, front and rear. • Fluidised bed membranes replaced • Primary air fan motor replaced • Secondary air fan motor replaced • Maintenance strategy carried out on line 1 ID fan. Full overhaul. • Detailed ATEX area inspection, intrusive of all parts associated with the PAC system • Statutory stack inspections • Ram feeder hydraulics replaced as part of maintenance strategy • Defective grate rams replaced • Feed hopper internal plates replaced • 2nd and 3rd pass conveyor replacement • Supertheater conveyor replacement Line 1 – Electrical • Transformer and LV Board Maintenance - Annual maintenance of Transformer, and LV Boards within a substation. • Circuit breaker service and protection testing • Quantum VFD service - The service included a general clean down, filter cleaning, terminal tightness, visual inspection, and module phase alignment. • Transmitter calibrations • 400VDC UPS service and Inspection • Actuator servicing and health checks Line 2 – Mechanical • Full clean and inspection of internal boiler/furnace gas path. • Bunker side furnace nozzle “Y” piece replacements and material upgrade to SS316 • 3rd pass LHS wall thermal spray application (26m-32m). Small area on the front wall. • NDT checks on boiler as part of the maintenance strategy – Vertex model • Superheater sections 3.1 leading 2 rows replaced • Inspection of mechanical grate on lines 1 and 2 inclusive of minor repairs. • Eco screw replacement • Reactor screw replacement • Pass 1 - Lower 2 rows of airflow refractory tiles replaced. NDT carried out pre replacement • Pass 1 - Upper 2 rows of air flow refractory tiles replaced. NDT carried out pre replacement • Pass 1 - General refractory maintenance carried out. Defective areas replaced. • Boiler access door shelves refractory reinstated • Inspections of site wide safety valves and test certs provided. • Thorough statutory inspections carried out as per PSSR WSE. • Full inspection and overhaul of ancillary plant equipment inclusive of Ash, FGT, APCR systems. • Site wide valve inspections and repairs. • Inconel repairs carried out to furnace side walls, front and rear. • Fluidised bed membranes replaced • Secondary air fan motor replaced • Detailed ATEX area inspection, intrusive of all parts associated with the PAC system • Statutory stack inspections • Walking floor hydraulic ram replaced • Defective grate rams replaced • Feed hopper internal plates replaced • 2nd and 3rd pass conveyor replacement • Supertheater conveyor replacement Line 2 – Electrical • Transformer and LV Board Maintenance - Annual maintenance of Transformer, and LV Boards within a substation. • Circuit breaker service and protection testing • Quantum VFD service - The service included a general clean down, filter cleaning, terminal tightness, visual inspection, and module phase alignment. • Transmitter calibrations • 400VDC UPS service and Inspection • Valmet upgrades DCS Common – Mechanical • Turbine outage as per strategy completed inclusive of the generator • Turbine bypass valve internals replaced, line 1 and line 2 • Turbine lube oil tank service carried out – Inspection and filter replacements Common– Electrical • Transformer and LV Board Maintenance - Annual maintenance of Transformer, and LV Boards within a substation. • Circuit breaker service and protection testing • Quantum VFD service - The service included a general clean down, filter cleaning, terminal tightness, visual inspection, and module phase alignment. • Transmitter calibrations • IPB testing NOVEMBER • Line 2 blowdown heat exchanger elements replaced • EG10 SV4 servicing • Fuel oil tanks had corrosion mapping NDT carried out • Upgraded fuel oil skid installed with new pumps. Duty/Standby • Waste crane petal repairs carried out • Hot tru testing carried out on boiler safety valves. Boiler drum and superheater. • Site wide compressor major servicing commenced DECEMBER • Feed pump 3 mech seal replaced • Amesa B probes project commenced • Weightron replaced weighbridge number 2 | K5: Include summary of key operational and/or maintenance activity undertaken in the year, such as any major component upgrades and/or replacements
A13: Summary of Residue Handling for the reporting year
A15: Incinerator Bottom Ash (IBA) from Ferrybridge 2 is stored in the Ash Bunker and then outloaded by the ash crane grab to receiving dumper trucks. Since operations began in 2019, the IBA has been collected and taken to the Blue Phoenix Ferrybridge site which is adjacent to the north of the Ferrybridge 2 site. Movement of the IBA is carried out by dumper truck via a predominantly internal road network to the Blue Phoenix site where it is processed into Incinerator Bottom Ash Aggregate (IBAA). APCr is collected in silos and then discharged to receiving tanker for off-site disposal. The APCr is transported to OCO Technology and occasionally to Castle Environmental Ltd. Castle Environmental receives APCr at two sites located in Ilkeston (Derbyshire) and Stoke on Trent, whereas OCO Technology has one site located in Leeds. Castle Environmental currently recycles approximately 70% of the APCr whereas OCO Technology recycles 100%. | K15: Include in here a summary of residue handling regimes and destinations
A18: =+'Cover Page'!C38 -> 2024 | B18: Plant shut-downs
A19: Date | B19: Reason for shut-down | K19: Provide a very brief reason for plant shut-down e.g. "Shut-down prior to major outage"; "Emergency shut-down due to boiler tube leak" There is no need to include periods of hot-standby here (e.g. to clear feed chute hopper blockages). For clinical waste incinerators which require regular shut-downs for boiler cleaning, there is no need to record these here.
A20: 2024-01-07 | B20: Lines A1 and A2 off due to turbine trip.
A21: 2024-02-05 | B21: Line A2 off from 05/02/24 to 09/02/24 for maintenance outage.
A22: 2024-03-04 | B22: Line A1 off from 04/03/24 to 07/03/24 for maintenance outage.
A23: 2024-06-24 | B23: Line A2 off for repairs to the boiler refractory lining.
A24: 2024-10-08 | B24: Line A1 off from 08/10/24 to 21/10/24 due to maintenance outage.
A25: 2024-10-16 | B25: Line A2 off from 16/10/24 to 29/10/24 due to maintenance outage.
A26: 2024-11-02 | B26: Line A1 off to allow removal of turbine blanking plate.
A27: 2024-11-02 | B27: Line A2 off to allow removal of turbine blanking plate.
A28: 2024-12-15 | B28: Line A2 off due to ash extractor blockage.
C52: 2025-01-31

Sheet Perf. Form 1
A1: =+'Cover Page'!C38 -> 2024 | B1: Annual Reporting Performance Form 1
A3: =+'Cover Page'!B30 -> Permit EPR/XP3833DK | F3: Operator: | G3: =+'Cover Page'!B36 -> enfinium Ferrybridge 2 Ltd
A4: Facility: | B4: =+'Cover Page'!B32:I32 -> Ferrybridge 2 | F4: Form: | G4: Performance 1
A6: Reporting Period from: | D6: 2024-01-01 | F6: to: | G6: 2024-12-31
A8: =+A1 -> 2024 | B8: Annual Reporting of Waste Disposal and Recovery
A9: Waste Description | C9: Disposal Route(s) | E9: Disposal Tonnes | G9: Recovery Tonnes | I9: % / tonne of waste incinerated
A10: 1) Hazardous Wastes
A11: APC Residues | C11: D9/R5 | E11: 1131.18 | G11: 27273.86 | I11: =IF((E11+G11)>0,(E11+G11)/'Operational Data'!$G$10, "-") -> 0.04242202684
A12: APCr filter bags | C12: D15 | E12: 16.94 | I12: =IF((E12+G12)>0,(E12+G12)/'Operational Data'!$G$10, "-") -> 2.529935303e-05
A13: Oil contaminated solid waste | C13: R13 | G13: 9.9 | I13: =IF((E13+G13)>0,(E13+G13)/'Operational Data'!$G$10, "-") -> 1.478533618e-05
A14: Waste oil | C14: R13 | G14: 4.793 | I14: =IF((E14+G14)>0,(E14+G14)/'Operational Data'!$G$10, "-") -> 7.158193569e-06
A15: Fluorescent tubes | C15: R13 | G15: 0.08 | I15: =IF((E15+G15)>0,(E15+G15)/'Operational Data'!$G$10, "-") -> 1.194774641e-07
A16: Waste batteries | C16: R13 | G16: 0.385 | I16: =IF((E16+G16)>0,(E16+G16)/'Operational Data'!$G$10, "-") -> 5.749852961e-07
A17: Total Hazardous Waste | E17: =SUM(E11:F16) -> 1148.12 | G17: =SUM(G11:H16) -> 27289.018 | I17: =IF((E17+G17)>0,(E17+G17)/'Operational Data'!$G$10, "-") -> 0.04246996419
A19: 2) Non-Hazardous Wastes
A20: IBA - produced | C20: R5 | G20: 127228.11 | I20: =IF((E20+G20)>0,(E20+G20)/'Operational Data'!$G$10, "-") -> 0.1900111493
A21: Ferrous metals from bottom ash | C21: R4 | G21: 9480.1 | I21: =IF((E21+G21)>0,(E21+G21)/'Operational Data'!$G$10, "-") -> 0.01415822884
A22: Metals | C22: R4 | G22: 42.38 | I22: =IF((E22+G22)>0,(E22+G22)/'Operational Data'!$G$10, "-") -> 6.329318662e-05
A23: Mixed packaging | C23: R13 | G23: 1.86 | I23: =IF((E23+G23)>0,(E23+G23)/'Operational Data'!$G$10, "-") -> 2.777851041e-06
A24: Mixed municipal waste | C24: R13 | G24: 40.54 | I24: =IF((E24+G24)>0,(E24+G24)/'Operational Data'!$G$10, "-") -> 6.054520494e-05
A25: Wood waste | C25: R3 | G25: 8.1 | I25: =IF((E25+G25)>0,(E25+G25)/'Operational Data'!$G$10, "-") -> 1.209709324e-05
A26: Sewage waste | C26: D8 | G26: 78.92 | I26: =IF((E26+G26)>0,(E26+G26)/'Operational Data'!$G$10, "-") -> 0.0001178645184
A27: Waste Electrical and Electronic Equipment | C27: R13 | G27: 4 | I27: =IF((E27+G27)>0,(E27+G27)/'Operational Data'!$G$10, "-") -> 5.973873206e-06
A28: Activated carbon waste from wastewater treatment | C28: D15 | E28: 0.94 | I28: =IF((E28+G28)>0,(E28+G28)/'Operational Data'!$G$10, "-") -> 1.403860203e-06
A29: Total Non-Hazardous Waste | E29: =SUM(E20:F28) -> 0.94 | G29: =SUM(G20:H28) -> 136884.01 | I29: =IF((E29+G29)>0,(E29+G29)/'Operational Data'!$G$10, "-") -> 0.2044333338
A30: TOTAL WASTE | E30: =+E29+E17 -> 1149.06 | G30: =+G29+G17 -> 164173.028 | I30: =IF((E30+G30)>0,(E30+G30)/'Operational Data'!$G$10, "-") -> 0.246903298
A32: Operator’s comments :
A36: =+A1 -> 2024 | B36: Annual Reporting of Water and Other Raw Material Usage
A37: Raw Material | E37: Usage | G37: Unit | H37: Specific Usage | J37: Unit
A38: Mains Water | E38: 53681.4 | G38: m3 | H38: =IF(E38>0,E38/'Operational Data'!$G$10,"-") -> 0.08017146928 | J38: m3/te
A39: Total Water | E39: =+'Operational Data'!G40+'Operational Data'!G39/1000 -> 87289.4514 | G39: m3 | H39: =IF(E39>0,E39/'Operational Data'!$G$10,"-") -> 0.1303640287 | J39: m3/te
A40: Urea / Ammonia | E40: =+'Operational Data'!G41 -> 166243.26 | G40: kg | H40: =IF(E40>0,E40/'Operational Data'!$G$10,"-") -> 0.2482790391 | J40: kg/te
A41: Activated Carbon | E41: =+'Operational Data'!G42 -> 230872.37 | G41: kg | H41: =IF(E41>0,E41/'Operational Data'!$G$10,"-") -> 0.3448005663 | J41: kg/te
A42: Lime / hydrated lime / Sodium Bicarb. | E42: =+'Operational Data'!G43 -> 13306678 | G42: kg | H42: =IF(E42>0,E42/'Operational Data'!$G$10,"-") -> 19.87310179 | J42: kg/te
A44: Operator’s comments :
A48: =+A36 -> 2024 | B48: Annual Reporting of other performance indicators
A49: Parameter | C49: Results by Line
C50: A1 | D50: A2 | E50: Turbine 1
A51: Operating hours for the year, hours | C51: 8314 | D51: 8227.1 | E51: 8220.1
A52: Cumulative hours of abnormal operation for this year, hours | C52: 0 | D52: 0.5 | E52: 0
A54: Operator’s comments :
A58: Signed: | G58: Date:

Sheet Energy Form 1
A1: =+'Cover Page'!C38 -> 2024 | B1: Annual Reporting of Energy Usage/Export
A3: =+'Cover Page'!B30 -> Permit EPR/XP3833DK | F3: Operator: | G3: =+'Cover Page'!B36 -> enfinium Ferrybridge 2 Ltd
A5: Facility: | B5: =+'Cover Page'!B32:I32 -> Ferrybridge 2 | F5: Form: | G5: Energy 1
A7: Reporting Period from: | D7: =+'Perf. Form 1'!D6:E6 -> 2024-01-01 | F7: to: | G7: =+'Perf. Form 1'!G6:H6 -> 2024-12-31
A9: Energy Source | D9: Energy Usage | F9: Unit | G9: Specific Usage (KWh/tonne incinerated
A10: Electricity Produced | D10: =+'Operational Data'!G13 -> 649729.08 | F10: MWh | G10: =+'Operational Data'!H13 -> 970.3497855
A11: Electricity Imported | D11: =+'Operational Data'!G16 -> 2325.14 | F11: MWh | G11: =+'Operational Data'!H16 -> 3.472522886
A12: Electricity Exported | D12: =+'Operational Data'!G14 -> 594941 | F12: MWh | G12: =+'Operational Data'!H14 -> 888.5255247
A13: Gas Oil | D13: 715.23 | F13: tonnes | G13: =+'Operational Data'!H15 -> 81.82426078
A15: Operator’s comments :
C52: 2025-01-31

Sheet Permit Compliance
A1: =+'Cover Page'!$B$28 -> Annual Performance Report 2024 | E1: =+'Cover Page'!$B$32 -> Ferrybridge 2
A3: Summary of Permit Compliance
A5: Compliance with permit limits for continuously monitored pollutants
A7: The plant met its emission limits as shown in the table below:
A8: Substance | C8: Percentage time compliant during operationNote 1 | L8: Notes:
C9: Half-hourly limit | F9: Daily limit | L9: Note 1: Please report to 2 decimal places, i.e. xx.xx% Note 2: Please enter into this table any permit non-compliances that the EA has given a CCS score for. Please also enter any other non-compliances which you have notified to the EA (e.g. ELV exceedances) but which have not yet been assessed by the EA. There is no need to enter any notifications which were subsequently assessed by the EA not to be permit breaches. Note 3: Please enter information here (rather than just referencing the notifications that were sent to the EA) including where relevant the incineration line reference, pollutant and value of the measured result for any ELV exceedances.
A10: Particulates | C10: 0.9862 | F10: 0.9863
A11: Oxides of nitrogen | C11: 1 | F11: 1
A12: Sulphur dioxide | C12: 1 | F12: 1
A13: Carbon monoxide | C13: 100.00% of 95% of 10-min averages | F13: 1
A14: Total organic carbon | C14: 1 | F14: 1
A15: Hydrogen chloride | C15: 1 | F15: 0.9945
A16: Ammonia | C16: 1 | F16: 1
A18: Summary of non-compliances under the permit Note 2
A19: Date | B19: Summary of non-compliance Note 3 | D19: Reason | G19: Measures taken to prevent reoccurrence | H19: CCS score if applicable*
H20: Impact | I20: Root cause
A21: 2024-04-25 | B21: Exceedance of particulate emission limit value. following a furnace trip. | D21: Occurred due to incorrect counting of elevated readings after waste feed had ceased. | G21: Immediate cessation of waste feed.
A22: 2024-09-16 | B22: Quantity of particulates emitted from Line A1 and A2. | D22: Occurred due to incorrect seating of dust probe in stack. | G22: Dust probe seating rectified immediaely, instructions issued to CEMS engineers to complete acceptance forms before leaving site.
A23: 2024-11-06 | B23: Exceedance of dust 30-minute average and HCl daily average emission limit values. | D23: Occurred following full plant trip of Lines A1, A2 and turbine. | G23: Immediate cessation of waste feed.
A24: *If the Environment Agency (EA) has given a Compliance Classification Scheme (CCS) score due to a permit non-compliance it should be entered here (CCS4 = No impact; CCS3 = Minor impact; CCS2 = Significant impact; CCS1 = Major impact). If the EA has not yet assessed a non-compliance which you have notified to them, these columns should be left blank. Enter N/A if no score was given for the root cause.
A28: Summary of any complaints received and actions to taken to resolve them.
A29: Date | B29: Summary of complaint [including Line/Reference] | E29: Reason (including whether substantiated by the operator or the EA) | H29: Measures taken to prevent reoccurrence
A30: 2024-01-04 | B30: External complaint posted to Ferrybridge Facility webpage about a smell of smoke and odour around the facilities. | E30: Unsubstantiated | H30: Discussed at morning meeting, report sent to EA confirming operational activities at the time.
A31: 2024-01-05 | B31: External complaint via Environment Agency about a burning/chemical smell first noticed on 5th January and again on 7th January. | E31: Unsubstantiated | H31: Discussed at morning meeting, report sent to EA confirming operational activities at the time.
A32: 2024-01-08 | B32: External complaint received via the Environment Agency about a burning/chemical smell noticed at 10:06hrs on 08/01/24. | E32: Unsubstantiated | H32: Discussed at morning meeting, report sent to EA confirming operational activities at the time.
A33: 2024-01-08 | B33: External complaint received via the Environment Agency about dust covering local vehicles. Also reports of vibrations and noise from site, duration described as intermittent but ongoing. | E33: Unsubstantiated | H33: Discussed at morning meeting, report sent to EA confirming operational activities at the time.
A34: 2024-02-05 | B34: External complaint to enfinium website queries about queuing RDF delivery lorries on Kirkhaw Lane. | E34: Unsubstantiated | H34: Discussed at morning meeting, traffic management reviewed and monitoring showed traffic queues much reduced. Email sent to complainant.
A35: 2024-02-28 | B35: External complaint received about littering on A162. | E35: Unsubstantiated | H35: Discussed at morning meeting, fuel team contacted all fuel suppliers to ensure their delivery vehicles do not deposit material onto the highways.
A36: 2024-03-30 | B36: External complaint about queuing RDF delivery vehicles on Kirkhaw Lane. | E36: Unsubstantiated | H36: Discussed at morning meeting, raised with plant managers and fuel tem. New driver sanctions and provision of information sent to delivery drivers. Email sent to complainant.
A37: 2024-09-26 | B37: One complaint received from Wakefield Council Highways regarding queuing RDF delivery vehicles on the A162. | E37: Unsubstantiated | H37: Discussed at morning meeting, plant manager contacted complainant, issues discussed at Transport Liaison Group meeting.
A38: 2024-10-04 | B38: External complaint about RDF delivery vehicles queuing on Kirkhaw Lane before 7am. | E38: Unsubstantiated | H38: Discussed at morning meeting, monitoring carried out, complainant contacted.
A39: 2024-10-16 | B39: External complaint received from the Environment Agency about noise from site activities. | E39: Unsubstantiated | H39: Discussed at morning meeting, report sent to EA confirming operational activities at the time.
C52: 2025-01-31

Sheet Improvements
A1: =+'Cover Page'!$B$28 -> Annual Performance Report 2024 | E1: =+'Cover Page'!$B$32 -> Ferrybridge 2
A3: Summary of Plant Improvements
A5: Summary of any efficiency improvements that have been completed within the year.
A6: Line 1 ID fan motor replacement Line 1 economiser and reactor screw replacement Line 1 primary air fan motor replacement Line 1 secondary air fan motor replacement Line 2 primary air fan motor replacement Line 2 economiser and reactor screw replacement Line 2 secondary air fan motor replacement ACC cleaning
A16: Summary of any permit improvement conditions that have been completed within the year and the resulting environmental benefits.
A17: None
A20: Summary of any changes to the plant or operating techniques which required a variation to the permit and a summary of the resulting environmental impact.
A21: None
A24: Summary of any other improvements made to the plant or planned to be made and a summary of the resulting environmental benefits.
A25: None
C52: 2025-01-31

Sheet Public Liasion
A1: =+'Cover Page'!$B$28 -> Annual Performance Report 2024 | E1: =+'Cover Page'!$B$32 -> Ferrybridge 2
A3: Details of Public & Stakeholder Liaison
A5: Summary of events held during the reporting year.
A6: Date | C6: Description
A7: 2024-06-14 | C7: Transport Liaison Group meeting
A9: 2024-11-21 | C9: Transport Liaison Group meeting
A12: List of events planned for next year
A13: Date | C13: Description
A14: Q2 2024, Q4 2024 | C14: Transport liaison group meetings to continue bi-annually, dates to be confirmed.
A17: If you wish to be involved in the public liaison programme, please contact John Warren
C52: 2025-01-31

Sheet CO2 N2O
B1: =+'Cover Page'!$B$28 -> Annual Performance Report 2024 | C1: =+'Cover Page'!$B$32 -> Ferrybridge 2
B3: Carbon dioxide emissions and biogenic content of waste inputs | F3: Notes:
B5: Carbon dioxide emissions (all types of plant)
B6: Annual mass of carbon dioxide released | C6: tonnes | D6: 729514
B7: Annual mass of carbon dioxide released per tonne of waste burned | C7: t CO2 / t waste | D7: 1.09
B8: Annual mass of carbon dioxide released per MWh of energy exported | C8: t CO2 / MWh export | D8: 1.23
B9: Description of how annual carbon dioxide mass emission has been calculated. See Note 1 | C9: CEMS CO2% calculated via Annual mass emissions report and converted into kg | F9: Note 1: All permits require operators to continuously monitor CO2 to EN14181 and flow to BS EN 16911-2 (unless otherwise agreed in writing). Operators must therefore use the results from these instruments to calculate their annual CO2 emissions. Where an operator does not have a flow meter calibrated to BS EN 16911-2, the averaged flow measurement from that year's periodic monitoring can be used instead. If the plant does not have calibrated CO2 CEMS, a suitably justified emissions factor can be used.
B10: Nitrous oxide emissions (only plants which use ammonia or urea to abate NOx emissions)
B11: Annual mass emissions of nitrous oxide | C11: tonnes N2O | D11: 3.027
B12: Description of how annual nitrous oxide mass emission has been calculated. See Note 2 | C12: CEMS data has been used to calculate the mass emissions | F12: Note 2: All permits require operators to continuously monitor N2O to EN14181 and flow to BS EN 16911-2, unless otherwise agreed in writing. Operators must therefore use the results from these instruments to calculate their annual N2O emissions. Where an operator does not have a flow meter calibrated to BS EN 16911-2, the averaged flow measurement from periodic monitoring can be used instead. If the plant does not have calibrated N2O CEMS, data from periodic monitoring or a suitably justified emissions factor can be used instead.
B13: Total annual carbon dioxide + nitrous oxide emissions. See Note 3. | C13: tonnes CO2e | D13: 729517 | F13: Note 3: Total annual carbon dioxide and nitrous oxide emissions reported as carbon dioxide equivalent where 1 tonne nitrous oxide is equivalent to 265 tonnes carbon dioxide.
B14: Biogenic CO2 emissions (See Note 4) | F14: Note 4: Only plants combusting residual municipal waste, refuse derived fuel or solid recovered fuel need complete this section.
B15: Percentage of total carbon dioxide emissions arising from biogenic waste | C15: % | D15: 0.573
B16: No. of measurements undertaken | C16: Number | D16: 302
B17: Description of how percentage biogenic carbon dioxide emissions have been measured or calculated. See Note 5 | C17: Calculated from lab analysis via a UKAS accredited method ISO 216:2021. | F17: Note 5: The results from C14 sampling should be used if this is carried out at the plant (either via an installed sampler or from spot samples). Otherwise, as an approximation (and in lieu of any more accurate metrics which may be developed in future), the measured or estimated biogenic fraction by net calorific value (see Note 6) can be assumed to be the same as the biogenic CO2 fraction of the total CO2 emissions from the plant.
B18: Biogenic fraction of waste feedstock (See Note 4)
B19: Yearly average biogenic percentage of the waste by net calorific value (NCV) | C19: % | D19: 0.574
B20: Description of how biogenic percentage (by NCV) has been calculated or estimated. See Note 6 | C20: From fuel model which takes weighbridge data and RDF test results sampled at source (calculated from lab analysis via a UKAS accredited method ISO 21644:2021), then weights each suppliers tonnage on a heat input basis. | F20: Note 6: If C14 sampling is carried out at the plant, the methodology set out in the embedded document entitled "Renewable Energy Association Energy Content of Fuels - Description of Method" embedded below can be used to calculate the biogenic percentage by net calorific value. Otherwise, data from waste sampling or BIOMA software can be used; or if none of these are available, an estimated figure with justification or a figure assumed on the basis of up-to-date industry data can be used.
B21: Yearly average biogenic percentage of the waste by mass | C21: % | D21: 0.619
B22: If waste sampling undertaken, no. of samples used to ascertain average biogenic percentages above | C22: Number | D22: 222
B23: Description of how biogenic percentage (by mass) has been calculated or estimated. See Note 7 | C23: From fuel model which takes weighbridge data and RDF test results sampled at source (calculated from lab analysis via a UKAS accredited method ISO 21644:2021), then weights each suppliers tonnage on a heat input basis. | F23: Note 7: Where available, data from waste sampling should be used; otherwise, an estimated figure with justification can be used, or a figure assumed on the basis of up-to-date industry data.
B25: Comments:
B26: The numbers for waste sampling and biogenic content are provisional and based on an incomplete dataset, as some data is still waiting to be received.
C52: 2025-01-31

Sheet Residue Quality
A1: =+'Cover Page'!$B$28 -> Annual Performance Report 2024 | E1: =+'Cover Page'!$B$32 -> Ferrybridge 2
A3: Residue Quality Monitoring Requirements
A5: Summary of monitoring undertaken and compliance
A6: Monthly IBA hazard assessments and annual full hazardous property assessments, quarterly IBA and APC residue compliance monitoring, annual characterisation of IBA and APC residue. Analysis and reporting carried out by WRc.
A9: Commentary on any specific events
A10: Date & Event | C10: Description
A11: October 2024 - IBA and APC Annual Characterisation Report | C11: Results of the annual characterisation of IBA and APC residues from Ferrybridge 2, including a full hazardous property assessment of IBA as required by the ESA Protocol 2018.
A14: Residue Quality Monitoring Results
A15: Parameter (unit) | C15: Limit* | D15: Normal Operation
D16: Bottom ash | F16: APC Residues
A17: Loss on Ignition (average %) | C17: <5% | D17: 1.1375
A18: Total Organic Carbon (average %) | C18: <3% | D18: 0.575
A19: No. of Assessments Undertaken | C19: --- | D19: 24 | F19: 4
A20: No. of Hazardous Results | C20: --- | D20: 0
A21: * The permit will specify a limit of either 5% loss on ignition or 3% total organic carbon. If both are measured anyway, please enter the results here, even where the limit does not apply.
A23: Comments :
C52: 2025-01-31

Sheet Water
A1: =+'Cover Page'!$B$28 -> Annual Performance Report 2024 | E1: =+'Cover Page'!$B$32 -> Ferrybridge 2
A3: Emissions to Water
A5: Summary of monitoring undertaken and compliance
A6: Frequent sampling and analysis of attenuation pond water, tested for pH and conductivity, odour and appearance prior to discharge to Fryston Beck. No issues identified in 2024.
A9: Commentary on any specific events
A10: Date & Event | C10: Description
A11: N/A | C11: N/A
A14: Emissions to Water / Sewer
A15: Parameter | D15: Monitoring Frequency | F15: Limit | G15: Target | H15: Max. | I15: Average
A16: No parameters set in permit | D16: None | F16: None | G16: None | H16: None | I16: None
C52: 2025-01-31

Sheet Air (periodic)
A1: =+'Cover Page'!$B$28 -> Annual Performance Report 2024 | E1: =+'Cover Page'!$B$32 -> Ferrybridge 2
A3: Emissions to Air (periodically monitored)
A5: Summary of monitoring undertaken, standards used and compliance
A6: Bi-annual monitoring undertaken in March 2024 and November 2024. Standards used include EN 14385, MID 14385, EN 1948, ISO 11338, ISO 15713, EN 14789, TGN M22 and EN 16911-1 (MID). H1 test results from March 2024 and H2 test results from November 2024 demonstrated full compliance with emission limit values.
A9: Results of emissions to air that are periodically monitored - oxygen reference 11%
A10: Substance | C10: Ref. Period | D10: Emission Limit Value | F10: Average
F11: A1 | G11: A2
A12: Hydrogen fluoride | C12: 1 hr | D12: 1 mg/m3 | F12: 0.054 | G12: 0.052
A13: Cd and Tl and their compounds | C13: 0.5-8hrs | D13: 0.02 mg/m3 | F13: 0.0013 | G13: 0.0013
A14: Hg and its compounds | C14: 0.5-8hrs | D14: 0.02 mg/m3 | F14: 0.002 | G14: 0.0018
A15: Sb, As, Pb, Cr, Co, Cu, Mn, Ni, V and their compounds | C15: 0.5-8hrs | D15: 0.3 mg/m3 | F15: 0.026 | G15: 0.055
A16: Dioxins & Furans (I-TEQ) | C16: 6-8hrs | D16: 0.06 ng/m3 | F16: 0.022 | G16: 0.026
A17: PCBs (WHO-TEQ Humans / Mammals) | C17: 6-8hrs | D17: None set ng/m3 | F17: 0.0027 | G17: 0.0012
A18: PCBs (WHO-TEQ Fish) | C18: 6-8hrs | D18: None set ng/m3 | F18: 0.00012 | G18: 0.027
A19: PCBs (WHO-TEQ Birds) | C19: 6-8hrs | D19: None set ng/m3 | F19: 0.0052 | G19: 0.0027
A20: Dioxins & Furans (WHO-TEQ Humans / Mammals) | C20: 6-8hrs | D20: None set ng/m3 | F20: 0.019 | G20: 0.023
A21: Dioxins & Furans (WHO-TEQ Fish) | C21: 6-8hrs | D21: None set ng/m3 | F21: 0.021 | G21: 0.027
A22: Dioxins & Furans (WHO-TEQ Birds) | C22: 6-8hrs | D22: None set ng/m3 | F22: 0.034 | G22: 0.049
A23: Anthanthrene | C23: 6-8hrs | D23: None set µg/m3 | F23: <0.0016 | G23: <0.0017
A24: Benzo(a)anthracene | C24: 6-8hrs | D24: None set µg/m3 | F24: <0.0016 | G24: <0.0017
A25: Benzo(a)pyrene | C25: 6-8hrs | D25: None set µg/m3 | F25: <0.0016 | G25: <0.0017
A26: Benzo(b)naptho(2,1-d) thiophene | C26: 6-8hrs | D26: None set µg/m3 | F26: <0.0016 | G26: <0.0017
A27: Benzo(c)phenanthrene | C27: 6-8hrs | D27: None set µg/m3 | F27: <0.0016 | G27: <0.0017
A28: Benzo(ghi)perylene | C28: 6-8hrs | D28: None set µg/m3 | F28: 0.0072 | G28: 0.003
A29: Benzo(k)fluoranthene | C29: 6-8hrs | D29: None set µg/m3 | F29: <0.0016 | G29: <0.0017
A30: Cholanthrene | C30: 6-8hrs | D30: None set µg/m3 | F30: <0.0016 | G30: <0.0017
A31: Chrysene | C31: 6-8hrs | D31: None set µg/m3 | F31: 0.0016 | G31: 0.0028
A32: Cyclopenta(cd)pyrene | C32: 6-8hrs | D32: None set µg/m3 | F32: <0.0016 | G32: <0.0017
A33: Dibenzo(ai)pyrene | C33: 6-8hrs | D33: None set µg/m3 | F33: <0.0016 | G33: <0.0017
A34: Dibenzo(ah)anthracene | C34: 6-8hrs | D34: None set µg/m3 | F34: <0.0016 | G34: <0.0017
A35: Fluoranthene | C35: 6-8hrs | D35: None set µg/m3 | F35: 0.041 | G35: 0.19
A36: Indeno(123-cd) pyrene | C36: 6-8hrs | D36: None set µg/m3 | F36: <0.0016 | G36: <0.0017
A37: Naphthalene | C37: 6-8hrs | D37: None set µg/m3 | F37: 0.41 | G37: 0.1877
A38: Comments :
A42: Results of emissions to air that are periodically monitored - oxygen reference 11%
A43: Substance | C43: Ref. Period | D43: Emission Limit Value | F43: Average
F44: A1 | G44: A2
A45: Hydrogen fluoride | C45: 1 hr | D45: 1 mg/m3 | F45: 0.044 | G45: 0.044
A46: Cd and Tl and their compounds | C46: 0.5-8hrs | D46: 0.02 mg/m3 | F46: 0.00096 | G46: 0.001
A47: Hg and its compounds | C47: 0.5-8hrs | D47: 0.02 mg/m3 | F47: 0.002 | G47: 0.0021
A48: Sb, As, Pb, Cr, Co, Cu, Mn, Ni, V and their compounds | C48: 0.5-8hrs | D48: 0.3 mg/m3 | F48: 0.017 | G48: 0.021
A49: Dioxins & Furans (I-TEQ) | C49: 6-8hrs | D49: 0.06 ng/m3 | F49: 0.005 | G49: 0.015
A50: PCBs (WHO-TEQ Humans / Mammals) | C50: 6-8hrs | D50: None set ng/m3 | F50: 0.00034 | G50: 0.0035
A51: PCBs (WHO-TEQ Fish) | C51: 6-8hrs | D51: None set ng/m3 | F51: 1.8e-05 | G51: 0.00018
A52: PCBs (WHO-TEQ Birds) | C52: 6-8hrs | D52: None set ng/m3 | F52: 0.0012 | G52: 0.007
A53: Dioxins & Furans (WHO-TEQ Humans / Mammals) | C53: 6-8hrs | D53: None set ng/m2
A54: Dioxins & Furans (WHO-TEQ Fish) | C54: 6-8hrs | D54: None set ng/m3 | F54: 0.0051 | G54: 0.016
A55: Dioxins & Furans (WHO-TEQ Birds) | C55: 6-8hrs | D55: None set ng/m3 | F55: 0.012 | G55: 0.038
A56: Comments :

Sheet Air (CEMS)
A1: =+'Cover Page'!$B$28 -> Annual Performance Report 2024
A3: Emissions to Air (continuously monitored)
H4: Notes:
A5: Summary of monitoring undertaken, standards used and compliance | H5: Template may require adjustment for any bespoke monitoring requirements of permit
A6: Continuous emissions monitoring of Oxides of Nitrogen, Sulphur Dioxide, Hydrogen Chloride, Total Organic Carbon, Particulates, Ammonia and Carbon Monoxide (also Flow, O2, N2O) to EN14181. Instruments used PCME QAL 181, Environement SA MIR FT multigas analyser and Graphite 52M Flame Ionisation Detector (FID). All results demonstrate 100% compliance with the daily emission limit values. All results (except particulates due to abnormal operations conditions) demonstrate 100% compliance with 1/2 hour average emission limit values. | H6: Please check that all default ELV values match those for your plant and edit if necessary!
H7: Report to 1 decimal place
A11: Results of emissions to air that are continuously monitored (maximum and average values for each line) - oxygen reference 11%
A12: Substance | B12: Reference Period | C12: Emission Limit Value | D12: A1 | F12: A2
D13: Max. | E13: Avg. | F13: Max. | G13: Avg.
A14: Oxides of nitrogen | B14: Daily mean | C14: 180 mg/m3 | D14: =NOx!O19 -> 172.38 | E14: =NOx!N19 -> 164.38 | F14: =NOx!O33 -> 175.11 | G14: =NOx!N33 -> 166.3072727
B15: ½ hourly mean | C15: 400 mg/m3 | D15: =NOx!M19 -> 211 | E15: =NOx!L19 -> 164.4166667 | F15: =NOx!M33 -> 364 | G15: =NOx!L33 -> 166.3636364
A16: Particulates | B16: Daily mean | C16: 5 mg/m3 | D16: =Particulates!O19 -> 3.66 | E16: =Particulates!N19 -> 0.745 | F16: =Particulates!O33 -> 1.93 | G16: =Particulates!N33 -> 0.4318181818
B17: ½ hourly mean | C17: 30 mg/m3 | D17: =Particulates!M19 -> 8 | E17: =Particulates!L19 -> 1 | F17: =Particulates!M33 -> 60 | G17: =Particulates!L33 -> 0.2727272727
A18: Total Organic Carbon | B18: Daily mean | C18: 10 mg/m3 | D18: =TOC!O19 -> 0.98 | E18: =TOC!N19 -> 0.2558333333 | F18: =TOC!O33 -> 0.68 | G18: =TOC!N33 -> 0.2572727273
B19: ½ hourly mean | C19: 20 mg/m3 | D19: =TOC!M19 -> 5 | E19: =TOC!L19 -> 0.25 | F19: =TOC!M33 -> 13 | G19: =TOC!L33 -> 0
A20: Hydrogen chloride | B20: Daily mean | C20: 8 mg/m3 | D20: =HCl!O19 -> 7.93 | E20: =HCl!N19 -> 6.556666667 | F20: =HCl!O33 -> 8.15 | G20: =HCl!N33 -> 6.668181818
B21: ½ hourly mean | C21: 60 mg/m3 | D21: =HCl!M19 -> 13 | E21: =HCl!L19 -> 6.583333333 | F21: =HCl!M33 -> 44 | G21: =HCl!L33 -> 6.636363636
A22: Sulphur dioxide | B22: Daily mean | C22: 40 mg/m3 | D22: ='SO2'!O19 -> 2.45 | E22: ='SO2'!N19 -> 0.4266666667 | F22: ='SO2'!O33 -> 2.19 | G22: ='SO2'!N33 -> 0.3754545455
B23: ½ hourly mean | C23: 200 mg/m3 | D23: ='SO2'!M19 -> 27 | E23: ='SO2'!L19 -> 0.3333333333 | F23: ='SO2'!M33 -> 37 | G23: ='SO2'!L33 -> 0.3636363636
A24: Carbon monoxide | B24: Daily mean | C24: 50 mg/m3 | D24: ='CO 95% 10 min'!Q20 -> 9.26 | E24: ='CO 95% 10 min'!P20 -> 3.024166667 | F24: ='CO 95% 10 min'!Q34 -> 41.29 | G24: ='CO 95% 10 min'!P34 -> 3.960909091
B25: 95%ile 10-min avg * | C25: 150 mg/m3 * | D25: ='CO 95% 10 min'!M20 -> 37 | E25: ='CO 95% 10 min'!N20 -> 3 | F25: ='CO 95% 10 min'!M34 -> 51 | G25: ='CO 95% 10 min'!N34 -> 3.909090909
A27: Comments :
C52: 2025-01-31

Sheet NOx
A1: =+'Cover Page'!$B$28 -> Annual Performance Report 2024 | E1: =+'Cover Page'!$B$32 -> Ferrybridge 2
A3: Monitoring of Oxides of Nitrogen emissions | D3: Whole Installation | G3: See Notes in Cell Q3 | J3: =+A3 -> Monitoring of Oxides of Nitrogen emissions | N3: Per Combustion Line | Q3: Notes:
Q4: User to add logic to complete Whole installation, Table A5:G18. From the data in Per Combustion Line, Table J6:O79, subject to No. of lines installed
A5: =+'Cover Page'!C38 -> 2024 | B5: 1/2 Hourly Reference Periods | E5: Daily Reference Periods
A6: mg/Nm3 | B6: 1/2 hourly NOx ELV | C6: Monthly mean of half-hourly averages | D6: Highest half- hourly average | E6: Daily NOx ELV | F6: Monthly mean of daily averages | G6: Highest daily average | J6: =+A5 -> 2024 | K6: mg/Nm3 | L6: Monthly mean of half-hourly averages | M6: Highest half- hourly average | N6: Monthly mean of daily averages | O6: Highest daily average
A7: Jan | B7: 400 | C7: =AVERAGE(L7, L22) -> 159.5 | D7: =MAX(M7, M22) -> 198 | E7: 180 | F7: =AVERAGE(N7, N22) -> 159.43 | G7: =MAX(O7, O22) -> 169.52 | J7: A1 | K7: Jan | L7: 161 | M7: 198 | N7: 160.86 | O7: 169.52
A8: Feb | B8: 400 | C8: =AVERAGE(L8, L23) -> 160 | D8: =MAX(M8, M23) -> 188 | E8: 180 | F8: =AVERAGE(N8, N23) -> 159.98 | G8: =MAX(O8, O23) -> 164.68 | K8: Feb | L8: 160 | M8: 188 | N8: 160.09 | O8: 164.68
A9: Mar | B9: 400 | C9: 161 | D9: 203 | E9: 180 | F9: 160.885 | G9: 167.02 | K9: Mar | L9: 160 | M9: 203 | N9: 159.95 | O9: 167.02 | Q9: Whole Installation table A5:G18:
A10: Apr | B10: 400 | C10: 160 | D10: 200 | E10: 180 | F10: 160.29 | G10: 162.55 | K10: Apr | L10: 159 | M10: 185 | N10: 159.31 | O10: 160.98 | Q10: Mean: for 1/2 hourly and daily periods calculate mean of values across all operational combustion lines for the month
A11: May | B11: 400 | C11: 168.5 | D11: 196 | E11: 180 | F11: 168.11 | G11: 171.68 | K11: May | L11: 166 | M11: 184 | N11: 165.66 | O11: 170.01
A12: Jun | B12: 400 | C12: 169.5 | D12: 198 | E12: 180 | F12: 169.285 | G12: 171.81 | K12: Jun | L12: 169 | M12: 190 | N12: 168.51 | O12: 170.71
A13: Jul | B13: 400 | C13: 168.5 | D13: 198 | E13: 180 | F13: 168.58 | G13: 171.73 | K13: Jul | L13: 167 | M13: 192 | N13: 167.23 | O13: 169.73 | Q13: Maximum: for 1/2 hourly and daily periods use the highest value across all operational combustion lines for the month
A14: Aug | B14: 400 | C14: 168.5 | D14: 211 | E14: 180 | F14: 168.66 | G14: 171.54 | K14: Aug | L14: 168 | M14: 211 | N14: 168.04 | O14: 170.76
A15: Sep | B15: 400 | C15: 168.5 | D15: 364 | E15: 180 | F15: 168.69 | G15: 175.11 | K15: Sep | L15: 167 | M15: 197 | N15: 167.42 | O15: 170.49
A16: Oct | B16: 400 | C16: 167.5 | D16: 207 | E16: 180 | F16: 167.285 | G16: 171.42 | K16: Oct | L16: 166 | M16: 200 | N16: 165.87 | O16: 170.84
A17: Nov | B17: 400 | C17: 167.5 | D17: 207 | E17: 180 | F17: 167.345 | G17: 172.38 | K17: Nov | L17: 165 | M17: 196 | N17: 164.76 | O17: 172.38
A18: Dec | B18: 400 | C18: 165.6818182 | D18: 364 | E18: 180 | F18: 165.5836364 | G18: 175.11 | K18: Dec | L18: 165 | M18: 191 | N18: 164.86 | O18: 167.98
K19: Annual | L19: =AVERAGE(L7:L18) -> 164.4166667 | M19: =MAX(M7:M18) -> 211 | N19: =AVERAGE(N7:N18) -> 164.38 | O19: =MAX(O7:O18) -> 172.38
J21: =+A5 -> 2024 | K21: mg/Nm3 | L21: Monthly mean of half-hourly averages | M21: Highest half- hourly average | N21: Monthly mean of daily averages | O21: Highest daily average
J22: A2 | K22: Jan | L22: 158 | M22: 196 | N22: 158 | O22: 169.12
K23: Feb | L23: 160 | M23: 184 | N23: 159.87 | O23: 162.28
K24: Mar | L24: 162 | M24: 198 | N24: 161.82 | O24: 163.58
K25: Apr | L25: 161 | M25: 200 | N25: 161.27 | O25: 162.55
K26: Jun | L26: 171 | M26: 196 | N26: 170.56 | O26: 171.68
K27: Jul | L27: 170 | M27: 198 | N27: 170.06 | O27: 171.81
K28: Aug | L28: 170 | M28: 198 | N28: 169.93 | O28: 171.73
K29: Sep | L29: 169 | M29: 206 | N29: 169.28 | O29: 171.54
K30: Oct | L30: 170 | M30: 364 | N30: 169.96 | O30: 175.11
K31: Nov | L31: 169 | M31: 207 | N31: 168.7 | O31: 171.42
K32: Dec | L32: 170 | M32: 207 | N32: 169.93 | O32: 171.48
K33: Annual | L33: =AVERAGE(L22:L32) -> 166.3636364 | M33: =MAX(M22:M32) -> 364 | N33: =AVERAGE(N22:N32) -> 166.3072727 | O33: =MAX(O22:O32) -> 175.11
A47: Comments :
C52: 2025-01-31

Sheet SO2
A1: =+'Cover Page'!$B$28 -> Annual Performance Report 2024 | E1: =+'Cover Page'!$B$32 -> Ferrybridge 2
A3: Monitoring of Sulphur dioxide emissions | D3: Whole Installation | G3: See Notes in Cell Q3 | J3: =+A3 -> Monitoring of Sulphur dioxide emissions | N3: Per Combustion Line | Q3: Notes:
Q4: User to add logic to complete Whole installation, Table A5:G18. From the data in Per Combustion Line, Table J6:O79, subject to No. of lines installed
A5: =+'Cover Page'!C38 -> 2024 | B5: 1/2 Hourly Reference Periods | E5: Daily Reference Periods
A6: mg/Nm3 | B6: 1/2 hourly SO2 ELV | C6: Monthly mean of half-hourly averages | D6: Highest half- hourly average | E6: Daily SO2 ELV | F6: Monthly mean of daily averages | G6: Highest daily average | J6: =+A5 -> 2024 | K6: mg/Nm3 | L6: Monthly mean of half-hourly averages | M6: Highest half- hourly average | N6: Monthly mean of daily averages | O6: Highest daily average
A7: Jan | B7: 200 | C7: =AVERAGE(L7, L22) -> 1 | D7: =MAX(M7, M22) -> 16 | E7: 40 | F7: =AVERAGE(N7, N22) -> 0.97 | G7: =MAX(O7, O22) -> 2.19 | J7: A1 | K7: Jan | L7: 0 | M7: 16 | N7: 0.43 | O7: 1.17
A8: Feb | B8: 200 | C8: =AVERAGE(L8, L23) -> 1 | D8: =MAX(M8, M23) -> 16 | E8: 40 | F8: =AVERAGE(N8, N23) -> 0.74 | G8: =MAX(O8, O23) -> 1.95 | K8: Feb | L8: 1 | M8: 16 | N8: 0.74 | O8: 1.55
A9: Mar | B9: 200 | C9: 1 | D9: 21 | E9: 40 | F9: 0.785 | G9: 2.45 | K9: Mar | L9: 1 | M9: 10 | N9: 1.05 | O9: 2.45 | Q9: Whole Installation table A5:G18:
A10: Apr | B10: 200 | C10: 0 | D10: 21 | E10: 40 | F10: 0.41 | G10: 0.96 | K10: Apr | L10: 0 | M10: 3 | N10: 0.44 | O10: 0.89 | Q10: Mean: for 1/2 hourly and daily periods calculate mean of values across all operational combustion lines for the month
A11: May | B11: 200 | C11: 0 | D11: 17 | E11: 40 | F11: 0.155 | G11: 0.56 | K11: May | L11: 0 | M11: 2 | N11: 0.2 | O11: 0.4
A12: Jun | B12: 200 | C12: 0 | D12: 5 | E12: 40 | F12: 0.09 | G12: 0.53 | K12: Jun | L12: 0 | M12: 4 | N12: 0.15 | O12: 0.53
A13: Jul | B13: 200 | C13: 0 | D13: 37 | E13: 40 | F13: 0.12 | G13: 1.96 | K13: Jul | L13: 0 | M13: 8 | N13: 0.09 | O13: 0.41 | Q13: Maximum: for 1/2 hourly and daily periods use the highest value across all operational combustion lines for the month
A14: Aug | B14: 200 | C14: 0 | D14: 12 | E14: 40 | F14: 0.215 | G14: 0.96 | K14: Aug | L14: 0 | M14: 12 | N14: 0.22 | O14: 0.96
A15: Sep | B15: 200 | C15: 0 | D15: 12 | E15: 40 | F15: 0.315 | G15: 1.12 | K15: Sep | L15: 0 | M15: 10 | N15: 0.35 | O15: 1.12
A16: Oct | B16: 200 | C16: 0.5 | D16: 27 | E16: 40 | F16: 0.375 | G16: 1.81 | K16: Oct | L16: 1 | M16: 27 | N16: 0.61 | O16: 1.81
A17: Nov | B17: 200 | C17: 0 | D17: 20 | E17: 40 | F17: 0.18 | G17: 1.18 | K17: Nov | L17: 0 | M17: 8 | N17: 0.3 | O17: 1.18
A18: Dec | B18: 200 | C18: 0.6818181818 | D18: 37 | E18: 40 | F18: 0.4577272727 | G18: 2.19 | K18: Dec | L18: 1 | M18: 11 | N18: 0.54 | O18: 1.41
K19: Annual | L19: =AVERAGE(L7:L18) -> 0.3333333333 | M19: =MAX(M7:M18) -> 27 | N19: =AVERAGE(N7:N18) -> 0.4266666667 | O19: =MAX(O7:O18) -> 2.45
J21: =+A5 -> 2024 | K21: mg/Nm3 | L21: Monthly mean of half-hourly averages | M21: Highest half- hourly average | N21: Monthly mean of daily averages | O21: Highest daily average
J22: A2 | K22: Jan | L22: 2 | M22: 15 | N22: 1.51 | O22: 2.19
K23: Feb | L23: 1 | M23: 13 | N23: 0.74 | O23: 1.95
K24: Mar | L24: 1 | M24: 21 | N24: 0.52 | O24: 1.32
K25: Apr | L25: 0 | M25: 21 | N25: 0.38 | O25: 0.96
K26: Jun | L26: 0 | M26: 17 | N26: 0.11 | O26: 0.56
K27: Jul | L27: 0 | M27: 5 | N27: 0.03 | O27: 0.13
K28: Aug | L28: 0 | M28: 37 | N28: 0.15 | O28: 1.96
K29: Sep | L29: 0 | M29: 11 | N29: 0.21 | O29: 0.85
K30: Oct | L30: 0 | M30: 12 | N30: 0.28 | O30: 0.8
K31: Nov | L31: 0 | M31: 17 | N31: 0.14 | O31: 0.48
K32: Dec | L32: 0 | M32: 20 | N32: 0.06 | O32: 0.46
K33: Annual | L33: =AVERAGE(L22:L32) -> 0.3636363636 | M33: =MAX(M22:M32) -> 37 | N33: =AVERAGE(N22:N32) -> 0.3754545455 | O33: =MAX(O22:O32) -> 2.19
A47: Comments :
C52: 2025-01-31

Sheet HCl
A1: =+'Cover Page'!$B$28 -> Annual Performance Report 2024 | E1: =+'Cover Page'!$B$32 -> Ferrybridge 2
A3: Monitoring of Hydrogen Chloride emissions | D3: Whole Installation | G3: See Notes in Cell Q3 | J3: =+A3 -> Monitoring of Hydrogen Chloride emissions | N3: Per Combustion Line | Q3: Notes:
Q4: User to add logic to complete Whole installation, Table A5:G18. From the data in Per Combustion Line, Table J6:O79, subject to No. of lines installed
A5: =+'Cover Page'!C38 -> 2024 | B5: 1/2 Hourly Reference Periods | E5: Daily Reference Periods
A6: mg/Nm3 | B6: 1/2 hourly HCl ELV | C6: Monthly mean of half-hourly averages | D6: Highest half- hourly average | E6: Daily HCl ELV | F6: Monthly mean of daily averages | G6: Highest daily average | J6: =+A5 -> 2024 | K6: mg/Nm3 | L6: Monthly mean of half-hourly averages | M6: Highest half- hourly average | N6: Monthly mean of daily averages | O6: Highest daily average
A7: Jan | B7: 60 | C7: =AVERAGE(L7, L22) -> 6.5 | D7: =MAX(M7, M22) -> 20 | E7: 8 | F7: =AVERAGE(N7, N22) -> 6.655 | G7: =MAX(O7, O22) -> 7.92 | J7: A1 | K7: Jan | L7: 6 | M7: 12 | N7: 6.09 | O7: 7.36
A8: Feb | B8: 60 | C8: =AVERAGE(L8, L23) -> 6.5 | D8: =MAX(M8, M23) -> 13 | E8: 8 | F8: =AVERAGE(N8, N23) -> 6.09 | G8: =MAX(O8, O23) -> 7.43 | K8: Feb | L8: 6 | M8: 11 | N8: 5.6 | O8: 6.72
A9: Mar | B9: 60 | C9: 6.5 | D9: 14 | E9: 8 | F9: 6.29 | G9: 7.4 | K9: Mar | L9: 6 | M9: 12 | N9: 5.8 | O9: 7.32 | Q9: Whole Installation table A5:G18:
A10: Apr | B10: 60 | C10: 7.5 | D10: 11 | E10: 8 | F10: 7.255 | G10: 7.74 | K10: Apr | L10: 8 | M10: 11 | N10: 7.51 | O10: 7.74 | Q10: Mean: for 1/2 hourly and daily periods calculate mean of values across all operational combustion lines for the month
A11: May | B11: 60 | C11: 6.5 | D11: 12 | E11: 8 | F11: 6.615 | G11: 7.76 | K11: May | L11: 7 | M11: 10 | N11: 7.42 | O11: 7.76
A12: Jun | B12: 60 | C12: 6 | D12: 11 | E12: 8 | F12: 6.465 | G12: 7.82 | K12: Jun | L12: 6 | M12: 10 | N12: 6.45 | O12: 7.82
A13: Jul | B13: 60 | C13: 7 | D13: 13 | E13: 8 | F13: 6.655 | G13: 7.73 | K13: Jul | L13: 7 | M13: 13 | N13: 6.67 | O13: 7.73 | Q13: Maximum: for 1/2 hourly and daily periods use the highest value across all operational combustion lines for the month
A14: Aug | B14: 60 | C14: 7 | D14: 16 | E14: 8 | F14: 6.825 | G14: 7.83 | K14: Aug | L14: 7 | M14: 12 | N14: 6.89 | O14: 7.83
A15: Sep | B15: 60 | C15: 6 | D15: 44 | E15: 8 | F15: 6.195 | G15: 7.93 | K15: Sep | L15: 7 | M15: 10 | N15: 6.9 | O15: 7.89
A16: Oct | B16: 60 | C16: 6.5 | D16: 19 | E16: 8 | F16: 6.815 | G16: 8.15 | K16: Oct | L16: 6 | M16: 12 | N16: 6.41 | O16: 7.93
A17: Nov | B17: 60 | C17: 7 | D17: 15 | E17: 8 | F17: 6.965 | G17: 7.81 | K17: Nov | L17: 7 | M17: 12 | N17: 6.56 | O17: 7.77
A18: Dec | B18: 60 | C18: 6.318181818 | D18: 44 | E18: 8 | F18: 6.524090909 | G18: 8.15 | K18: Dec | L18: 6 | M18: 12 | N18: 6.38 | O18: 7.14
K19: Annual | L19: =AVERAGE(L7:L18) -> 6.583333333 | M19: =MAX(M7:M18) -> 13 | N19: =AVERAGE(N7:N18) -> 6.556666667 | O19: =MAX(O7:O18) -> 7.93
J21: =+A5 -> 2024 | K21: mg/Nm3 | L21: Monthly mean of half-hourly averages | M21: Highest half- hourly average | N21: Monthly mean of daily averages | O21: Highest daily average
J22: A2 | K22: Jan | L22: 7 | M22: 20 | N22: 7.22 | O22: 7.92
K23: Feb | L23: 7 | M23: 13 | N23: 6.58 | O23: 7.43
K24: Mar | L24: 7 | M24: 14 | N24: 6.78 | O24: 7.4
K25: Apr | L25: 7 | M25: 11 | N25: 7 | O25: 7.51
K26: Jun | L26: 6 | M26: 12 | N26: 5.81 | O26: 7.08
K27: Jul | L27: 6 | M27: 11 | N27: 6.48 | O27: 7.72
K28: Aug | L28: 7 | M28: 12 | N28: 6.64 | O28: 7.4
K29: Sep | L29: 7 | M29: 16 | N29: 6.76 | O29: 7.6
K30: Oct | L30: 5 | M30: 44 | N30: 5.49 | O30: 7.93
K31: Nov | L31: 7 | M31: 19 | N31: 7.22 | O31: 8.15
K32: Dec | L32: 7 | M32: 15 | N32: 7.37 | O32: 7.81
K33: Annual | L33: =AVERAGE(L22:L32) -> 6.636363636 | M33: =MAX(M22:M32) -> 44 | N33: =AVERAGE(N22:N32) -> 6.668181818 | O33: =MAX(O22:O32) -> 8.15
A47: Comments :
C52: 2025-01-31

Sheet TOC
A1: =+'Cover Page'!$B$28 -> Annual Performance Report 2024 | E1: =+'Cover Page'!$B$32 -> Ferrybridge 2
A3: Monitoring of Total organic carbon emissions | D3: Whole Installation | G3: See Notes in Cell Q3 | J3: =+A3 -> Monitoring of Total organic carbon emissions | N3: Per Combustion Line | Q3: Notes:
Q4: User to add logic to complete Whole installation, Table A5:G18. From the data in Per Combustion Line, Table J6:O79, subject to No. of lines installed
A5: =+'Cover Page'!C38 -> 2024 | B5: 1/2 Hourly Reference Periods | E5: Daily Reference Periods
A6: mg/Nm3 | B6: 1/2 hourly TOC ELV | C6: Monthly mean of half-hourly averages | D6: Highest half- hourly average | E6: Daily TOC ELV | F6: Monthly mean of daily averages | G6: Highest daily average | J6: =+A5 -> 2024 | K6: mg/Nm3 | L6: Monthly mean of half-hourly averages | M6: Highest half- hourly average | N6: Monthly mean of daily averages | O6: Highest daily average
A7: Jan | B7: 20 | C7: =AVERAGE(L7, L22) -> 0.5 | D7: =MAX(M7, M22) -> 5 | E7: 10 | F7: =AVERAGE(N7, N22) -> 0.505 | G7: =MAX(O7, O22) -> 0.67 | J7: A1 | K7: Jan | L7: 1 | M7: 3 | N7: 0.62 | O7: 0.67
A8: Feb | B8: 20 | C8: =AVERAGE(L8, L23) -> 0 | D8: =MAX(M8, M23) -> 3 | E8: 10 | F8: =AVERAGE(N8, N23) -> 0.255 | G8: =MAX(O8, O23) -> 0.62 | K8: Feb | L8: 0 | M8: 2 | N8: 0.29 | O8: 0.62
A9: Mar | B9: 20 | C9: 0 | D9: 13 | E9: 10 | F9: 0.18 | G9: 0.45 | K9: Mar | L9: 0 | M9: 2 | N9: 0.12 | O9: 0.17 | Q9: Whole Installation table A5:G18:
A10: Apr | B10: 20 | C10: 0 | D10: 6 | E10: 10 | F10: 0.11 | G10: 0.36 | K10: Apr | L10: 0 | M10: 2 | N10: 0.01 | O10: 0.04 | Q10: Mean: for 1/2 hourly and daily periods calculate mean of values across all operational combustion lines for the month
A11: May | B11: 20 | C11: 0 | D11: 3 | E11: 10 | F11: 0.1 | G11: 0.31 | K11: May | L11: 0 | M11: 3 | N11: 0.01 | O11: 0.13
A12: Jun | B12: 20 | C12: 0 | D12: 4 | E12: 10 | F12: 0.17 | G12: 0.47 | K12: Jun | L12: 0 | M12: 2 | N12: 0.01 | O12: 0.06
A13: Jul | B13: 20 | C13: 0 | D13: 3 | E13: 10 | F13: 0.405 | G13: 0.77 | K13: Jul | L13: 0 | M13: 1 | N13: 0.38 | O13: 0.77 | Q13: Maximum: for 1/2 hourly and daily periods use the highest value across all operational combustion lines for the month
A14: Aug | B14: 20 | C14: 0 | D14: 10 | E14: 10 | F14: 0.365 | G14: 0.74 | K14: Aug | L14: 0 | M14: 2 | N14: 0.4 | O14: 0.74
A15: Sep | B15: 20 | C15: 0.5 | D15: 4 | E15: 10 | F15: 0.41 | G15: 0.83 | K15: Sep | L15: 1 | M15: 4 | N15: 0.58 | O15: 0.83
A16: Oct | B16: 20 | C16: 0.5 | D16: 9 | E16: 10 | F16: 0.335 | G16: 0.98 | K16: Oct | L16: 1 | M16: 5 | N16: 0.54 | O16: 0.98
A17: Nov | B17: 20 | C17: 0 | D17: 1 | E17: 10 | F17: 0.105 | G17: 0.34 | K17: Nov | L17: 0 | M17: 1 | N17: 0.09 | O17: 0.23
A18: Dec | B18: 20 | C18: 0 | D18: 13 | E18: 10 | F18: 0.1386363636 | G18: 0.68 | K18: Dec | L18: 0 | M18: 2 | N18: 0.02 | O18: 0.05
K19: Annual | L19: =AVERAGE(L7:L18) -> 0.25 | M19: =MAX(M7:M18) -> 5 | N19: =AVERAGE(N7:N18) -> 0.2558333333 | O19: =MAX(O7:O18) -> 0.98
J21: =+A5 -> 2024 | K21: mg/Nm3 | L21: Monthly mean of half-hourly averages | M21: Highest half- hourly average | N21: Monthly mean of daily averages | O21: Highest daily average
J22: A2 | K22: Jan | L22: 0 | M22: 5 | N22: 0.39 | O22: 0.48
K23: Feb | L23: 0 | M23: 3 | N23: 0.22 | O23: 0.45
K24: Mar | L24: 0 | M24: 13 | N24: 0.24 | O24: 0.45
K25: Apr | L25: 0 | M25: 6 | N25: 0.21 | O25: 0.36
K26: Jun | L26: 0 | M26: 2 | N26: 0.19 | O26: 0.31
K27: Jul | L27: 0 | M27: 4 | N27: 0.33 | O27: 0.47
K28: Aug | L28: 0 | M28: 3 | N28: 0.43 | O28: 0.68
K29: Sep | L29: 0 | M29: 10 | N29: 0.33 | O29: 0.47
K30: Oct | L30: 0 | M30: 2 | N30: 0.24 | O30: 0.46
K31: Nov | L31: 0 | M31: 9 | N31: 0.13 | O31: 0.29
K32: Dec | L32: 0 | M32: 1 | N32: 0.12 | O32: 0.34
K33: Annual | L33: =AVERAGE(L22:L32) -> 0 | M33: =MAX(M22:M32) -> 13 | N33: =AVERAGE(N22:N32) -> 0.2572727273 | O33: =MAX(O22:O32) -> 0.68
A47: Comments :
C52: 2025-01-31

Sheet Particulates
A1: =+'Cover Page'!$B$28 -> Annual Performance Report 2024 | E1: =+'Cover Page'!$B$32 -> Ferrybridge 2
A3: Monitoring of Particulate matter emissions | D3: Whole Installation | G3: See Notes in Cell Q3 | J3: =+A3 -> Monitoring of Particulate matter emissions | N3: Per Combustion Line | Q3: Notes:
A5: =+'Cover Page'!C38 -> 2024 | B5: 1/2 Hourly Reference Periods | E5: Daily Reference Periods | Q5: User to add logic to complete Whole installation, Table A5:G18. From the data in Per Combustion Line, Table J6:O79, subject to No. of lines installed
A6: mg/Nm3 | B6: 1/2 hourly PM ELV | C6: Monthly mean of half-hourly averages | D6: Highest half- hourly average | E6: Daily PM ELV | F6: Monthly mean of daily averages | G6: Highest daily average | J6: =+A5 -> 2024 | K6: mg/Nm3 | L6: Monthly mean of half-hourly averages | M6: Highest half- hourly average | N6: Monthly mean of daily averages | O6: Highest daily average
A7: Jan | B7: 30 | C7: =AVERAGE(L7, L22) -> 1.5 | D7: =MAX(M7, M22) -> 7 | E7: 5 | F7: =AVERAGE(N7, N22) -> 1.075 | G7: =MAX(O7, O22) -> 3.66 | J7: A1 | K7: Jan | L7: 2 | M7: 7 | N7: 1.52 | O7: 3.66
A8: Feb | B8: 30 | C8: =AVERAGE(L8, L23) -> 0.5 | D8: =MAX(M8, M23) -> 6 | E8: 5 | F8: =AVERAGE(N8, N23) -> 0.67 | G8: =MAX(O8, O23) -> 1.52 | K8: Feb | L8: 1 | M8: 6 | N8: 1.16 | O8: 1.52
A9: Mar | B9: 30 | C9: 0.5 | D9: 8 | E9: 5 | F9: 0.705 | G9: 3.4 | K9: Mar | L9: 1 | M9: 8 | N9: 1.19 | O9: 3.4
A10: Apr | B10: 30 | C10: 0.5 | D10: 2 | E10: 5 | F10: 0.56 | G10: 1.01 | K10: Apr | L10: 0 | M10: 1 | N10: 0.5 | O10: 0.57 | Q10: Whole Installation table A5:G18:
A11: May | B11: 30 | C11: 0.5 | D11: 3 | E11: 5 | F11: 0.64 | G11: 1.27 | K11: May | L11: 1 | M11: 1 | N11: 0.56 | O11: 0.61 | Q11: Mean: for 1/2 hourly and daily periods calculate mean of values across all operational combustion lines for the month
A12: Jun | B12: 30 | C12: 1 | D12: 3 | E12: 5 | F12: 0.52 | G12: 1.93 | K12: Jun | L12: 1 | M12: 1 | N12: 0.51 | O12: 0.55
A13: Jul | B13: 30 | C13: 0.5 | D13: 5 | E13: 5 | F13: 0.51 | G13: 1.61 | K13: Jul | L13: 1 | M13: 5 | N13: 0.54 | O13: 0.65
A14: Aug | B14: 30 | C14: 0.5 | D14: 2 | E14: 5 | F14: 0.41 | G14: 0.57 | K14: Aug | L14: 1 | M14: 1 | N14: 0.54 | O14: 0.57 | Q14: Maximum: for 1/2 hourly and daily periods use the highest value across all operational combustion lines for the month
A15: Sep | B15: 30 | C15: 0.5 | D15: 2 | E15: 5 | F15: 0.45 | G15: 0.75 | K15: Sep | L15: 1 | M15: 1 | N15: 0.54 | O15: 0.59
A16: Oct | B16: 30 | C16: 0.5 | D16: 60 | E16: 5 | F16: 0.47 | G16: 1.43 | K16: Oct | L16: 1 | M16: 3 | N16: 0.64 | O16: 1.26
A17: Nov | B17: 30 | C17: 0.5 | D17: 2 | E17: 5 | F17: 0.515 | G17: 0.89 | K17: Nov | L17: 1 | M17: 2 | N17: 0.6 | O17: 0.74
A18: Dec | B18: 30 | C18: 0.6363636364 | D18: 60 | E18: 5 | F18: 0.5359090909 | G18: 1.93 | K18: Dec | L18: 1 | M18: 1 | N18: 0.64 | O18: 0.72
K19: Annual | L19: =AVERAGE(L7:L18) -> 1 | M19: =MAX(M7:M18) -> 8 | N19: =AVERAGE(N7:N18) -> 0.745 | O19: =MAX(O7:O18) -> 3.66
J21: =+A5 -> 2024 | K21: mg/Nm3 | L21: Monthly mean of half-hourly averages | M21: Highest half- hourly average | N21: Monthly mean of daily averages | O21: Highest daily average
J22: A2 | K22: Jan | L22: 1 | M22: 7 | N22: 0.63 | O22: 1.84
K23: Feb | L23: 0 | M23: 1 | N23: 0.18 | O23: 0.39
K24: Mar | L24: 0 | M24: 3 | N24: 0.22 | O24: 0.55
K25: Apr | L25: 1 | M25: 2 | N25: 0.62 | O25: 1.01
K26: Jun | L26: 0 | M26: 3 | N26: 0.72 | O26: 1.27
K27: Jul | L27: 1 | M27: 3 | N27: 0.53 | O27: 1.93
K28: Aug | L28: 0 | M28: 2 | N28: 0.48 | O28: 1.61
K29: Sep | L29: 0 | M29: 2 | N29: 0.28 | O29: 0.42
K30: Oct | L30: 0 | M30: 2 | N30: 0.36 | O30: 0.75
K31: Nov | L31: 0 | M31: 60 | N31: 0.3 | O31: 1.43
K32: Dec | L32: 0 | M32: 2 | N32: 0.43 | O32: 0.89
K33: Annual | L33: =AVERAGE(L22:L32) -> 0.2727272727 | M33: =MAX(M22:M32) -> 60 | N33: =AVERAGE(N22:N32) -> 0.4318181818 | O33: =MAX(O22:O32) -> 1.93
A47: Comments :
C52: 2025-01-31

Sheet NH3
A1: =+'Cover Page'!$B$28 -> Annual Performance Report 2024 | E1: =+'Cover Page'!$B$32 -> Ferrybridge 2
A3: Monitoring of Ammonia emissions | D3: Whole Installation | G3: See Notes in Cell Q3 | J3: =+A3 -> Monitoring of Ammonia emissions | N3: Per Combustion Line | Q3: Notes:
Q4: User to add logic to complete Whole installation, Table A5:G18. From the data in Per Combustion Line, Table J6:O79, subject to No. of lines installed
A5: =+'Cover Page'!C38 -> 2024 | B5: 1/2 Hourly Reference Periods | E5: Daily Reference Periods
A6: mg/Nm3 | B6: 1/2 hourly NH3 ELV | C6: Monthly mean of half-hourly averages | D6: Highest half- hourly average | E6: Daily NH3 ELV | F6: Monthly mean of daily averages | G6: Highest daily average | J6: =+A5 -> 2024 | K6: mg/Nm3 | L6: Monthly mean of half-hourly averages | M6: Highest half- hourly average | N6: Monthly mean of daily averages | O6: Highest daily average
A7: Jan | B7: None | C7: =AVERAGE(L7, L22) -> 0 | D7: =MAX(M7, M22) -> 1 | E7: 15 | F7: =AVERAGE(N7, N22) -> 0.025 | G7: =MAX(O7, O22) -> 0.51 | J7: A1 | K7: Jan | L7: 0 | M7: 1 | N7: 0.05 | O7: 0.51
A8: Feb | B8: =+B7 -> None | C8: =AVERAGE(L8, L23) -> 0 | D8: =MAX(M8, M23) -> 0 | E8: 15 | F8: =AVERAGE(N8, N23) -> 0.03 | G8: =MAX(O8, O23) -> 0.14 | K8: Feb | L8: 0 | M8: 0 | N8: 0.02 | O8: 0.07
A9: Mar | B9: =+B8 -> None | C9: 0 | D9: 1 | E9: 15 | F9: 0.03 | G9: 0.35 | K9: Mar | L9: 0 | M9: 1 | N9: 0.02 | O9: 0.35 | Q9: Whole Installation table A5:G18:
A10: Apr | B10: None | C10: 0 | D10: 0 | E10: 15 | F10: 0.025 | G10: 0.08 | K10: Apr | L10: 0 | M10: 0 | N10: 0 | O10: 0.02 | Q10: Mean: for 1/2 hourly and daily periods calculate mean of values across all operational combustion lines for the month
A11: May | B11: None | C11: 0 | D11: 1 | E11: 15 | F11: 0.045 | G11: 0.19 | K11: May | L11: 0 | M11: 0 | N11: 0 | O11: 0.01
A12: Jun | B12: None | C12: 0 | D12: 0 | E12: 15 | F12: 0.025 | G12: 0.11 | K12: Jun | L12: 0 | M12: 0 | N12: 0 | O12: 0.02
A13: Jul | B13: None | C13: 0 | D13: 0 | E13: 15 | F13: 0.01 | G13: 0.06 | K13: Jul | L13: 0 | M13: 0 | N13: 0 | O13: 0.02 | Q13: Maximum: for 1/2 hourly and daily periods use the highest value across all operational combustion lines for the month
A14: Aug | B14: None | C14: 0 | D14: 0 | E14: 15 | F14: 0.01 | G14: 0.14 | K14: Aug | L14: 0 | M14: 0 | N14: 0.02 | O14: 0.14
A15: Sep | B15: None | C15: 0 | D15: 1 | E15: 15 | F15: 0.035 | G15: 0.69 | K15: Sep | L15: 0 | M15: 0 | N15: 0 | O15: 0.07
A16: Oct | B16: None | C16: 0 | D16: 1 | E16: 15 | F16: 0.04 | G16: 0.27 | K16: Oct | L16: 0 | M16: 0 | N16: 0.02 | O16: 0.27
A17: Nov | B17: None | C17: 0 | D17: 0 | E17: 15 | F17: 0.025 | G17: 0.1 | K17: Nov | L17: 0 | M17: 0 | N17: 0 | O17: 0.03
A18: Dec | B18: None | C18: 0 | D18: 1 | E18: 15 | F18: 0.02136363636 | G18: 0.69 | K18: Dec | L18: 0 | M18: 0 | N18: 0 | O18: 0.01
K19: Annual | L19: =AVERAGE(L7:L18) -> 0 | M19: =MAX(M7:M18) -> 1 | N19: =AVERAGE(N7:N18) -> 0.01083333333 | O19: =MAX(O7:O18) -> 0.51
J21: =+A5 -> 2024 | K21: mg/Nm3 | L21: Monthly mean of half-hourly averages | M21: Highest half- hourly average | N21: Monthly mean of daily averages | O21: Highest daily average
J22: A2 | K22: Jan | L22: 0 | M22: 0 | N22: 0 | O22: 0.03
K23: Feb | L23: 0 | M23: 0 | N23: 0.04 | O23: 0.14
K24: Mar | L24: 0 | M24: 0 | N24: 0.04 | O24: 0.07
K25: Apr | L25: 0 | M25: 0 | N25: 0.05 | O25: 0.08
K26: Jun | L26: 0 | M26: 1 | N26: 0.09 | O26: 0.19
K27: Jul | L27: 0 | M27: 0 | N27: 0.05 | O27: 0.11
K28: Aug | L28: 0 | M28: 0 | N28: 0.02 | O28: 0.06
K29: Sep | L29: 0 | M29: 0 | N29: 0 | O29: 0.03
K30: Oct | L30: 0 | M30: 1 | N30: 0.07 | O30: 0.69
K31: Nov | L31: 0 | M31: 1 | N31: 0.06 | O31: 0.1
K32: Dec | L32: 0 | M32: 0 | N32: 0.05 | O32: 0.1
K33: Annual | L33: =AVERAGE(L22:L32) -> 0 | M33: =MAX(M22:M32) -> 1 | N33: =AVERAGE(N22:N32) -> 0.04272727273 | O33: =MAX(O22:O32) -> 0.69
A47: Comments :
A48: An indicated ELV value of zero in the table above means that no ammonia limit is/was set in the permit.
C52: 2025-01-31

Sheet CO 95% 10 min
A1: =+'Cover Page'!$B$28 -> Annual Performance Report 2024 | E1: =+'Cover Page'!$B$32 -> Ferrybridge 2
A3: Monitoring of Carbon Monoxide (10-minute avg) | E3: Whole Installation | H3: See Notes in Cell S3 | J3: =+A3 -> Monitoring of Carbon Monoxide (10-minute avg) | O3: Per Combustion Line | Q3: Notes: | S3: Notes:
S5: User to add logic to complete Whole installation, Table A5:H18. From the data in Per Combustion Line, Table K6:Q79, subject to No. of lines installed
A6: =+'Cover Page'!C38 -> 2024 | B6: 10-minute Reference Periods | F6: Daily Reference Periods
A7: mg/Nm3 | B7: 95%ile 10-min avg CO ELV | C7: Highest daily 95%ile 10-min average | D7: Monthly mean of 10-min averages | E7: Highest 10-min average | F7: Daily CO ELV | G7: Monthly mean of daily averages | H7: Highest daily average | K7: =+A6 -> 2024 | L7: mg/Nm3 | M7: Highest daily 95%ile 10-min average | N7: Monthly mean of 10-min averages | O7: Highest 10-min average | P7: Monthly mean of daily averages | Q7: Highest daily average
A8: Jan | B8: 150 | C8: =MAX(M8, M23) -> 18 | D8: =AVERAGE(N8, N23) -> 2.5 | E8: =MAX(O8, O23) -> 1863 | F8: 50 | G8: =AVERAGE(P8, P23) -> 2.89 | H8: =MAX(Q8, Q23) -> 16.44 | K8: A1 | L8: Jan | M8: 18 | N8: 2 | O8: 370 | P8: 2.32 | Q8: 5.94
A9: Feb | B9: =+B8 -> 150 | C9: =MAX(M9, M24) -> 17 | D9: =AVERAGE(N9, N24) -> 4 | E9: =MAX(O9, O24) -> 2679 | F9: =+F8 -> 50 | G9: =AVERAGE(P9, P24) -> 4.09 | H9: =MAX(Q9, Q24) -> 19.9 | L9: Feb | M9: 12 | N9: 4 | O9: 362 | P9: 3.73 | Q9: 6.48
A10: Mar | B10: =+B9 -> 150 | C10: 13 | D10: 4.5 | E10: 4499 | F10: =+F9 -> 50 | G10: 4.295 | H10: 30.35 | L10: Mar | M10: 10 | N10: 3 | O10: 224 | P10: 3.08 | Q10: 5.03 | S10: Whole Installation table A5:H18:
A11: Apr | B11: 150 | C11: 14 | D11: 4 | E11: 4931 | F11: 50 | G11: 4.095 | H11: 33.72 | L11: Apr | M11: 8 | N11: 3 | O11: 253 | P11: 2.94 | Q11: 5.32 | S11: Mean: for 10-min and daily periods use average of all operational combustion lines.
A12: May | B12: 150 | C12: 18 | D12: 3 | E12: 393 | F12: 50 | G12: 3.185 | H12: 6.31 | L12: May | M12: 8 | N12: 3 | O12: 393 | P12: 3 | Q12: 5.76
A13: Jun | B13: 150 | C13: 13 | D13: 3 | E13: 376 | F13: 50 | G13: 2.905 | H13: 9.07 | L13: Jun | M13: 8 | N13: 3 | O13: 241 | P13: 2.8 | Q13: 5.12
A14: Jul | B14: 150 | C14: 37 | D14: 3 | E14: 407 | F14: 50 | G14: 2.89 | H14: 7.5 | L14: Jul | M14: 37 | N14: 3 | O14: 407 | P14: 2.77 | Q14: 7.5 | S14: Maximum: for 10-min and daily periods use the highest of all operational combustion lines in any month.
A15: Aug | B15: 150 | C15: 42 | D15: 4.5 | E15: 5314 | F15: 50 | G15: 4.46 | H15: 41.29 | L15: Aug | M15: 25 | N15: 3 | O15: 719 | P15: 3.42 | Q15: 9.26
A16: Sep | B16: 150 | C16: 30 | D16: 4 | E16: 380 | F16: 50 | G16: 4.085 | H16: 10.05 | L16: Sep | M16: 30 | N16: 3 | O16: 380 | P16: 3.01 | Q16: 8.36
A17: Oct | B17: 150 | C17: 51 | D17: 3 | E17: 2563 | F17: 50 | G17: 3.18 | H17: 19.13 | L17: Oct | M17: 15 | N17: 3 | O17: 491 | P17: 3.39 | Q17: 9.04
A18: Nov | B18: 150 | C18: 11 | D18: 2.5 | E18: 291 | F18: 50 | G18: 2.485 | H18: 5.89 | L18: Nov | M18: 11 | N18: 3 | O18: 291 | P18: 3.09 | Q18: 5.62
A19: Dec | B19: 150 | C19: 51 | D19: 3.454545455 | E19: 5314 | F19: 50 | G19: 3.350454545 | H19: 41.29 | L19: Dec | M19: 9 | N19: 3 | O19: 233 | P19: 2.74 | Q19: 4.31
L20: Annual | M20: =MAX(M8:M19) -> 37 | N20: =AVERAGE(N8:N19) -> 3 | O20: =MAX(O8:O19) -> 719 | P20: =AVERAGE(P8:P19) -> 3.024166667 | Q20: =MAX(Q8:Q19) -> 9.26
K22: =+A6 -> 2024 | L22: mg/Nm3 | M22: Highest daily 95%ile 10-min average | N22: Monthly mean of 10-min averages | O22: Highest 10-min average | P22: Monthly mean of daily averages | Q22: Highest daily average
K23: A2 | L23: Jan | M23: 9 | N23: 3 | O23: 1863 | P23: 3.46 | Q23: 16.44
L24: Feb | M24: 17 | N24: 4 | O24: 2679 | P24: 4.45 | Q24: 19.9
L25: Mar | M25: 13 | N25: 6 | O25: 4499 | P25: 5.51 | Q25: 30.35
L26: May | M26: 14 | N26: 5 | O26: 4931 | P26: 5.25 | Q26: 33.72
L27: Jun | M27: 18 | N27: 3 | O27: 279 | P27: 3.37 | Q27: 6.31
L28: Jul | M28: 13 | N28: 3 | O28: 376 | P28: 3.01 | Q28: 9.07
L29: Aug | M29: 20 | N29: 3 | O29: 339 | P29: 3.01 | Q29: 5.72
L30: Sep | M30: 42 | N30: 6 | O30: 5314 | P30: 5.5 | Q30: 41.29
L31: Oct | M31: 27 | N31: 5 | O31: 265 | P31: 5.16 | Q31: 10.05
L32: Nov | M32: 51 | N32: 3 | O32: 2563 | P32: 2.97 | Q32: 19.13
L33: Dec | M33: 8 | N33: 2 | O33: 153 | P33: 1.88 | Q33: 5.89
L34: Annual | M34: =MAX(M23:M33) -> 51 | N34: =AVERAGE(N23:N33) -> 3.909090909 | O34: =MAX(O23:O33) -> 5314 | P34: =AVERAGE(P23:P33) -> 3.960909091 | Q34: =MAX(Q23:Q33) -> 41.29
A48: Comments :
A49: Environment Agency explanatory note: The 10-minute average ELV is based on the “95th percentile”. In this case this means that 95% of the 10 minute averages in the relevant 24-hour period (i.e. 137) must be below 150 mg/Nm3, and 5% (i.e. 7) are allowed to be any value above 150 mg/Nm3. Whilst we expect operators to minimise CO emissions at all times, it is perfectly acceptable for the value of the maximum 10-minute average to be above 150 mg/Nm3, provided the 95th percentile ELV has been met for that period.

Sheet CO 0.5 hourly
A1: =+'Cover Page'!$B$28 -> Annual Performance Report 2024 | E1: =+'Cover Page'!$B$32 -> Ferrybridge 2
A3: Monitoring of Carbon Monoxide (half hourly) | D3: Whole Installation | G3: See Notes in Cell Q3 | J3: =+A3 -> Monitoring of Carbon Monoxide (half hourly) | N3: Per Combustion Line | Q3: Notes:
A5: Please complete this tab for your plant if you have 1/2 hourly CO ELVs; otherwise, leave it blank and complete the CO 95% 10 min tab
Q7: User to add logic to complete Whole installation, Table A5:G18. From the data in Per Combustion Line, Table J6:O79, subject to No. of lines installed
A8: =+'Cover Page'!C38 -> 2024 | B8: 1/2 Hourly Reference Periods | E8: Daily Reference Periods
A9: mg/Nm3 | B9: 1/2 hourly CO ELV | C9: Monthly mean of half-hourly averages | D9: Highest half- hourly average | E9: Daily CO ELV | F9: Monthly mean of daily averages | G9: Highest daily average | J9: =+A8 -> 2024 | K9: mg/Nm3 | L9: Monthly mean of half-hourly averages | M9: Highest half- hourly average | N9: Monthly mean of daily averages | O9: Highest daily average
A10: Jan | B10: 100 | E10: 50 | J10: A1 | K10: Jan
A11: Feb | B11: =+B10 -> 100 | E11: =+E10 -> 50 | K11: Feb
A12: Mar | B12: =+B11 -> 100 | E12: =+E11 -> 50 | K12: Mar | Q12: Whole Installation table A5:G18:
A13: Apr | B13: 100 | E13: 50 | K13: Apr | Q13: Mean: for 1/2 hourly and daily periods calculate mean of values across all operational combustion lines for the month
A14: May | B14: 100 | E14: 50 | K14: May
A15: Jun | B15: 100 | E15: 50 | K15: Jun
A16: Jul | B16: 100 | E16: 50 | K16: Jul | Q16: Maximum: for 1/2 hourly and daily periods use the highest value across all operational combustion lines for the month
A17: Aug | B17: 100 | E17: 50 | K17: Aug
A18: Sep | B18: 100 | E18: 50 | K18: Sep
A19: Oct | B19: 100 | E19: 50 | K19: Oct
A20: Nov | B20: 100 | E20: 50 | K20: Nov
A21: Dec | B21: 100 | E21: 50 | K21: Dec
K22: Annual | L22: =AVERAGE(L10:L21) ->  | M22: =MAX(M10:M21) -> 0 | N22: =AVERAGE(N10:N21) ->  | O22: =MAX(O10:O21) -> 0
J24: =+A8 -> 2024 | K24: mg/Nm3 | L24: Monthly mean of half-hourly averages | M24: Highest half- hourly average | N24: Monthly mean of daily averages | O24: Highest daily average
J25: A2 | K25: Jan
K26: Mar
K27: Apr
K28: May
K29: Jun
K30: Jul
K31: Aug
K32: Sep
K33: Oct
K34: Nov
K35: Dec
K36: Annual | L36: =AVERAGE(L25:L35) ->  | M36: =MAX(M25:M35) -> 0 | N36: =AVERAGE(N25:N35) ->  | O36: =MAX(O25:O35) -> 0
J38: =+A8 -> 2024 | K38: mg/Nm3 | L38: Monthly mean of half-hourly averages | M38: Highest half- hourly average | N38: Monthly mean of daily averages | O38: Highest daily average
J39: A3 | K39: Jan
K40: Feb
K41: Mar
K42: Apr
K43: May
K44: Jun
K45: Jul
K46: Aug
K47: Sep
K48: Oct
K49: Nov
A50: Comments : | K50: Dec
K51: Annual | L51: =AVERAGE(L39:L50) ->  | M51: =MAX(M39:M50) -> 0 | N51: =AVERAGE(N39:N50) ->  | O51: =MAX(O39:O50) -> 0
J53: A4 | K53: Jan
K54: Feb
K55: Mar
K56: Apr
K57: May
K58: Jun
K59: Jul
K60: Aug
K61: Sep
K62: Oct
K63: Nov
K64: Dec
K65: Annual | L65: =AVERAGE(L53:L64) ->  | M65: =MAX(M53:M64) -> 0 | N65: =AVERAGE(N53:N64) ->  | O65: =MAX(O53:O64) -> 0
J67: =+A8 -> 2024 | K67: mg/Nm3 | L67: Monthly mean of half-hourly averages | M67: Highest half- hourly average | N67: Monthly mean of daily averages | O67: Highest daily average
J68: A5 | K68: Jan
K69: Feb
K70: Mar
K71: Apr
K72: May
K73: Jun
K74: Jul
K75: Aug
K76: Sep
K77: Oct
K78: Nov
K79: Dec
K80: Annual | L80: =AVERAGE(L68:L79) ->  | M80: =MAX(M68:M79) -> 0 | N80: =AVERAGE(N68:N79) ->  | O80: =MAX(O68:O79) -> 0

Sheet Template changes log
A1: Log of changes to template (Environment Agency use only)
A3: Date | B3: Description of change | C3: New version number and date
A4: 2024-01-16 | B4: Air (periodic) tab: corrected default O2 reference from 6 to 11% | C4: Version 23.5a (for incinerators) - 16/01/2024
A5: 2024-09-23 | B5: Air (periodic) tab: corrected symbol for Thallium to Tl
A6: 2024-09-23 | B6: Air (periodic) tab: removed last year's references to different emission limit values applying from 03/12/23 and updated all relevant ELVs
A7: 2024-09-23 | B7: Tabs for continuously monitored pollutants (HCl, SO2 etc.): changed terminology in table headings to improve clarity
A8: 2024-09-23 | B8: Tabs for continuously monitored pollutants (HCl, SO2 etc.): removed last year's references to different emission limit values applying from 03/12/23 and updated all relevant ELVs
A9: 2024-09-23 | B9: Perf 1 tab: updated formula for water usage to report m3 rather than litres and corrected error with formula copying operator name
A10: 2024-09-23 | B10: Operational Summary tab: table added on start-ups and shut-downs
A11: 2024-09-23 | B11: Operational Summary tab: table added on dioxins and mercury protocols
A12: 2024-09-23 | B12: Operational Summary tab: table added on AST, QAL 2 and calibration functions
A13: 2024-09-23 | B13: CO2 N2O tab: various changes made to notes to reflect the fact that most plants should now have calibrated CEMS and flow meters + some have C14 samplers and more up to date industry data | C13: Version 24a (for incinerators) - 23/09/24
A14: 2024-11-08 | B14: CO2 N2O tab: Changed the N2O CO2 equivalence factor from 298 to 265 in line with recently updated government greenhouse gas figures: https://www.gov.uk/government/publications/greenhouse-gas-reporting-conversion-factors-2024
A15: 2024-11-08 | B15: CO2 N2O tab: Added an additional requirement for municipal EfW plants to state the yearly average biogenic percentage of the waste by mass, and reference to a document which sets out a methodology for calculating NCV of waste from the results of C14 sampling.
A16: 2024-11-08 | B16: Permit Compliance tab: Two additional columns added + explanatory notes to the table entitled "Summary of non-compliances under the permit" to allow CCS scores to be stated where relevant.
A17: 2024-11-08 | B17: Residue Quality tab: Note added explaining application of TOC and LOI limits and asking operators to report both metrics where measured. | C17: Version 24.1a (for incinerators) - 08/11/24
A18: 2024-11-27 | B18: Operational Summary tab: Tables on mercury & dioxins protocols and ASTs removed (covered instead by new tables added to updated Air 9 periodic monitoring form) | C18: Version 24.2a (for incinerators) - 27/11/24
C52: 2025-01-31
